Cogmind - Beta 17.1 @@@ ROGUE MODE // 2026.08.21 @ 00:00:13 Player: Alicianrone Result: Establishing 0b11! Performance ------------- Evolutions (9) 4500 Regions Visited (27) 5400 Robots Destroyed (645) 3225 Value Destroyed (42298) 42298 Prototype IDs (387) 7740 Alien Tech Used (8) 1600 Bonus (107821) 107821 TOTAL SCORE: 172584 Bonus ------- Triggered High Security 2000 High Alert Combat Kills 21909 Follower Combat Kills 9125 Prayed to X0-1V1 5000 Major X0-1V1 Interference 21250 Forged Quantum Companion 2000 Awakened Behemoth Slayer 1000 Entered Garrisons 200 Used RIF Installer 500 Registered with UFD 300 Hacked Protovariant 500 Scanned by Researcher 500 Recovered Sigix Corpse 2000 Destroyed MAIN.C Guards 500 Met MAIN.C 5000 Destroyed MAIN.C Shell 5000 Destroyed MAIN.C 10000 Met Architect 300 Destroyed A8 300 Destroyed A6 400 Destroyed A5 500 Destroyed A3 800 Destroyed A2 1000 Destroyed Architect 15000 Win 3000 Friendly Fire -263 Cogmind --------- Core Integrity 1182/1575 Matter 196/1000 Energy 2153/2170 System Corruption 0% Temperature Cool (6) Movement Walking (102) Location 0b11 Command Parts ------- > --- POWER (4) -------- Graviton Reactor Graviton Reactor Graviton Reactor Improved Quantum Reactor > --- PROPULSION (7) --- High-density Centrium Leg High-density Centrium Leg (fused) High-density Centrium Leg Experimental Biometal Leg Experimental Biometal Leg Experimental Biometal Leg (fused) Experimental Biometal Leg > --- UTILITY (10) ----- Huge Storage Unit Spectral Analyzer Experimental Melee Analysis Suite Experimental Melee Analysis Suite Experimental Core Analyzer Experimental Armor Integrity Analyzer Femtoactuators Experimental Reaction Control System Experimental Powered Armor X0-1V1's Piety Tracker > --- WEAPON (4) ------- A3's Sniper Rifle Hypervelocity Linear Accelerator Graviton Cannon Superquantum Companion > --- INVENTORY (25) --- Graviton Reactor High-density Centrium Leg High-density Centrium Leg High-density Centrium Leg Cooled Antigrav System Cooled Antigrav System Combat Antigrav System Combat Antigrav System Antigrav Array Combat Linear Gravjet Experimental Power Amplifier ST Field Compressor Deep Structural Scanner Femtoactuators Graphene Brace Experimental Focal Shield Experimental Thermal Shield Experimental EM Shield High-powered Transdimensional Reconstructor Core Regenerator Enhanced Gamma Bomb Array Enhanced Gamma Bomb Array Sigix Corpse Peak State ------------ > --- POWER ------------ Improved Quantum Reactor Improved Quantum Reactor > --- PROPULSION ------- Experimental Biometal Leg Experimental Armored Exoskeleton Concept Biometal Exoskeleton > --- UTILITY ---------- Concept Antigrav Storage Unit Femtoactuators Concept Reaction Jets Concept Phase Shift Module Concept Cloak Mesh Wyrmplate X0-1V1's Piety Tracker > --- WEAPON ----------- Cooled Directed Potential Cannon Superquantum Companion > --- INVENTORY -------- Light Quantum Reactor Experimental Biometal Leg Experimental Armored Exoskeleton Concept Biometal Exoskeleton Concept Phasing Heat Sink Deep Structural Scanner Concept Weapon Articulator Concept Weapon Articulator Femtoactuators Experimental Force Booster Experimental Force Booster Concept Reaction Jets Concept Cloak Mesh Concept Beam Splitter Concept Hardlight Director Concept Hardlight Director Experimental Force Field Experimental Force Field Concept Rapid Grenade Launcher Concept Rapid Grenade Launcher CR-A16's Behemoth Slayer [Rating: 301] Favorites ----------- Power Improved Quantum Reactor Engine Cooled Ion Engine Power Core Light Neutrino Core Reactor Improved Quantum Reactor Propulsion Enhanced Flexi-carbon Leg Treads Light Treads Leg Enhanced Flexi-carbon Leg Wheel Compact Wheel Hover Unit Cooled Antigrav System Utility X0-1V1's Piety Tracker Device X0-1V1's Piety Tracker Storage High-capacity Storage Unit Processor Experimental Core Analyzer Hackware Relay Coupler [NC] Protection Improved Medium Armor Plating Artifact Phase Redirector Weapon Superquantum Companion Energy Gun Warp Gun Energy Cannon Matter Neutralizer Ballistic Gun Concept XC Strikerail Ballistic Cannon Antimatter Cannon Launcher Rocket Launcher Special Weapon Guided Remote Datajack Impact Weapon Makeshift Hammer Slashing Weapon Superquantum Companion Piercing Weapon Makeshift Spear Special Melee Weapon Improved Datajack Build | -11 -10 -10 -9 -9 -9 -9 -6 -6 -6 -6 -5 -5 -5 -5 -4 -4 -4 -4 -3 -3 -3 -2 -2 -2 -1 -1 -1 ------- Run | Yrd Mat Min Mat Sto Rec Scr Fac Low Low Zio Pro Fac Gar Fac Fac Upp Upp War Pro Res Tes Res Qua Frg Acc Com Ac0 Slots Evolved 18 | . . . 2 . . . 6 . . . . 2 . . 2 . . . . 2 . 2 . . 2 . . Power 2 | . . . . . . . . . . . . 1 . . . . . . . . . . . . 1 . . Propulsion 6 | . . . 1 . . . 4 . . . . . . . . . . . . . . 1 . . . . . Utility 9 | . . . . . . . 2 . . . . 1 . . 2 . . . . 2 . 1 . . 1 . . Weapon 1 | . . . 1 . . . . . . . . . . . . . . . . . . . . . . . . Parts Attached 472 | 8 12 8 13 7 1 10 27 7 8 21 9 9 17 7 5 7 10 . 12 14 26 . 11 70 37 53 63 Power 60 | 1 2 1 1 1 . 1 4 1 1 . 1 1 3 1 1 1 1 . 2 2 4 . . 4 6 8 12 Engine 11 | 1 2 1 1 1 . . 3 . 1 . . 1 . . . . . . . . . . . . . . . Core 8 | . . . . . . 1 1 1 . . . . 1 1 1 1 . . 1 . . . . . . . . Reactor 41 | . . . . . . . . . . . 1 . 2 . . . 1 . 1 2 4 . . 4 6 8 12 Propulsion 140 | 2 4 2 3 3 . 2 11 3 1 12 5 6 . 3 2 3 4 . 4 5 6 . 1 16 5 17 20 Treads 19 | . 3 1 3 3 . . 2 . 1 1 . . . . 2 1 1 . . . . . . . . 1 . Leg 103 | . . . . . . . 3 3 . 11 5 6 . 3 . 2 3 . 4 5 6 . 1 16 5 16 14 Wheel 8 | 2 1 1 . . . 2 2 . . . . . . . . . . . . . . . . . . . . Hover 10 | . . . . . . . 4 . . . . . . . . . . . . . . . . . . . 6 Flight . | . . . . . . . . . . . . . . . . . . . . . . . . . . . . Utility 173 | 2 4 1 1 2 1 1 6 2 2 3 3 1 13 1 1 2 3 . 4 6 9 . 6 39 19 20 21 Device 94 | 1 1 1 . 1 1 1 2 1 1 2 2 1 3 . . 1 2 . 1 2 6 . 3 29 10 8 14 Storage 9 | 1 2 . 1 . . . 1 1 . . . . . . . . . . . . . . 1 1 . 1 . Processor 19 | . . . . 1 . . . . . . . . . . . . . . 1 . . . . 5 2 7 3 Hackware 10 | . . . . . . . . . . 1 . . 2 . . . . . . 3 1 . 1 . 2 . . Protection 40 | . 1 . . . . . 3 . 1 . 1 . 8 1 1 1 1 . 2 1 2 . . 4 5 4 4 Artifact 1 | . . . . . . . . . . . . . . . . . . . . . . . 1 . . . . Weapon 99 | 3 2 4 8 1 . 6 6 1 4 6 . 1 1 2 1 1 2 . 2 1 7 . 4 11 7 8 10 Energy Gun 10 | . . 1 4 1 . . . . . . . . . . . . . . . . 1 . . 1 . 2 . Energy Cannon 9 | . . . . . . . 1 . 1 . . . . 1 . . . . . . 2 . . 2 . . 2 Ballistic Gun 21 | 3 2 2 1 . . . . . . . . . . . . . . . . . . . . 6 6 . 1 Ballistic Cannon 20 | . . 1 . . . 3 4 . . . . . . 1 1 . . . . . . . . . 1 2 7 Launcher 12 | . . . 2 . . 1 . . . 1 . . 1 . . . . . . . . . 1 2 . 4 . Special Weapon 6 | . . . . . . 2 . 1 . 1 . . . . . . . . 1 . 1 . . . . . . Impact Weapon 5 | . . . 1 . . . . . . 1 . . . . . 1 . . . . 1 . 1 . . . . Slashing Weapon 8 | . . . . . . . 1 . 2 1 . . . . . . 1 . 1 . . . 2 . . . . Piercing Weapon 7 | . . . . . . . . . 1 2 . . . . . . 1 . . 1 2 . . . . . . Special Melee Weapon 1 | . . . . . . . . . . . . 1 . . . . . . . . . . . . . . . Unidentified Prototypes 55 | . 1 . 1 . . . 6 . . 1 . 1 . . 1 . . . 1 . 8 . 7 20 3 . 5 Corrupted Parts 6 | . . . . . . . . . . . 1 . . . . . . . . . 1 . . 1 2 1 . System Corruption 33 | . . . . . . . . . . . 4 . . . . . . . . . 2 . . 3 13 11 . Parts Lost 148 | . 4 1 3 4 . 5 6 2 6 7 6 . 5 8 1 1 8 . 5 2 1 . . 22 5 15 31 Power 28 | . 2 . . 1 . 1 2 1 1 . . . 1 1 . . 1 . 1 . . . . 4 1 3 8 Propulsion 41 | . 1 . 2 . . 1 3 1 1 5 4 . . 3 1 . 4 . 2 . . . . 6 . 3 4 Utility 55 | . . 1 . 2 . 1 1 . 3 . 1 . 3 3 . . 2 . 2 2 1 . . 9 3 7 14 Weapon 24 | . 1 . 1 1 . 2 . . 1 2 1 . 1 1 . 1 1 . . . . . . 3 1 2 5 Highest Loss Streak 18 | . 2 1 1 2 . 2 4 2 4 2 3 . 4 4 1 1 5 . 2 2 1 . . 8 2 6 18 To Critical Strikes 4 | . . . . . . . . . . . . . . . . . . . . . . . . 1 . . 3 Average Backups 16 | 2 9 19 22 19 20 20 10 12 13 14 15 15 16 16 15 17 16 17 15 13 13 12 11 17 18 11 19 Power 1 | . . 1 2 2 2 2 . 1 . . 1 . . 1 2 3 3 3 1 1 1 1 1 . . 1 1 Propulsion 2 | 1 4 4 3 3 3 2 1 2 2 2 2 2 2 2 2 2 1 2 . . 1 1 1 1 1 2 9 Utility 7 | . 1 6 7 7 9 7 2 4 5 5 6 7 8 7 6 7 8 8 7 7 6 5 5 10 12 4 6 Weapon 3 | . 2 6 8 7 6 6 3 2 3 3 4 3 2 2 3 2 1 2 2 2 2 3 2 2 2 1 2 Tool/Special . | . . . . . . . . . . . . . . . . . . . . . . . . . . . . Unused Backups 105 | . . . 8 . . 11 6 2 1 2 4 1 2 1 . . 1 . . . 5 . . 9 5 15 32 Power 21 | . . . 2 . . . . 1 . . 1 . . . . . . . . . 2 . . 3 . 11 1 Propulsion 27 | . . . . . . . 1 . . . . . . 1 . . . . . . 3 . . 3 3 1 15 Utility 38 | . . . 3 . . 10 4 1 . 2 3 . 1 . . . 1 . . . . . . 2 2 3 6 Weapon 16 | . . . 3 . . 1 1 . 1 . . 1 . . . . . . . . . . . 1 . . 8 Tool/Special 3 | . . . . . . . . . . . . . 1 . . . . . . . . . . . . . 2 Average Slot Usage (%) 86 | . 99 99 97 93 92 88 86 99 85 89 96 98 96 86 79 94 91 89 93 92 77 64 69 63 75 80 95 Engine 3 | . 13 14 11 10 11 9 4 . 2 6 4 4 1 . . . . . . . . . . . . . . Core 1 | . . . . . . . . 5 1 . . . 1 5 7 10 9 5 5 2 . . . . 1 . . Reactor 4 | . . . . . . . . . . . 1 5 7 4 . . . 5 4 6 9 8 8 7 9 9 12 Treads 3 | . 5 14 21 22 18 9 14 2 2 1 . . . . 2 7 9 10 2 . . . . . . . . Leg 18 | . . . . . . . 2 36 33 37 38 35 35 31 19 22 14 21 28 27 18 13 15 14 11 22 26 Wheel 3 | . 22 13 9 10 11 12 11 1 . . . . . . . . . . . . . . . . . . . Device 15 | . 13 13 11 5 10 10 13 11 12 6 11 16 9 7 14 14 14 15 17 18 14 18 16 18 29 25 16 Storage 5 | . 14 14 11 11 11 10 6 6 6 6 6 5 5 5 5 5 5 5 5 4 4 4 4 4 3 3 3 Processor 2 | . . . . . . . . . . . . . . . . . . . . . . . . . 3 11 17 Hackware 1 | . . . . . . . . . . . 6 5 3 5 5 5 5 5 5 9 6 . 3 . 3 . . Protection 3 | . . . . . . . 4 7 2 3 . . 7 7 9 10 9 5 7 4 3 4 4 3 1 2 3 Energy Gun 1 | . . 8 8 12 19 . . . . . . . . . . . . . . . 2 2 3 . . . . Ballistic Gun 2 | . 28 9 22 19 9 . . . . . . . . . . . . . . . . . . 4 3 . 1 Ballistic Cannon 4 | . . 9 . . . 23 12 13 2 . . . . . 4 5 . . . . . . . . 1 . 7 Launcher 1 | . . . . . . 8 . . . 3 . . . . . . . . . . . . . . . . . Impact Weapon 1 | . . . . . 1 2 . . . 3 4 . . . . 2 4 . . . 2 . . . . . . Slashing Weapon 5 | . . . . . . . 4 6 12 11 13 11 11 11 10 6 5 10 9 9 4 4 3 4 3 3 3 Piercing Weapon 1 | . . . . . . . . . 5 7 6 5 5 2 . . 3 5 . 1 1 2 4 . . . . Peak Build Rating 301 | 7 20 26 35 35 34 36 79 87 86 85 84 111 116 105 102 115 124 110 132 151 219 219 226 301 289 287 266 Average Rating 140 | 4 8 22 30 27 30 31 58 84 75 75 79 102 109 97 95 106 110 110 123 138 178 215 212 259 261 226 249 On Entrance 102 | . 7 20 26 35 19 28 17 79 86 85 81 79 111 105 69 99 115 110 110 117 145 211 211 204 181 273 254 Avg Prop Armor Cover (%) 11 | . . 12 15 18 17 12 15 5 7 4 . . . . 9 6 10 14 7 . . . . 4 25 6 . Naked Turns . | . . . . . . . . . . . . . . . . . . . . . . . . . . . . Heaviest Build 207 | 14 89 94 99 99 99 105 92 90 89 87 77 83 108 109 107 107 95 79 97 128 146 146 150 188 172 207 206 Greatest Support 210 | 20 40 40 62 62 16 28 66 116 116 112 102 168 168 168 107 124 101 88 135 143 167 158 183 186 184 210 208 Greatest Overweight (x) 8 | . 4 5 6 6 6 8 6 4 . 1 1 . . . 1 1 1 . . . . . . 1 . 2 1 Average Overweight (x) . | . 3 4 5 5 5 6 2 . . . . . . . . . . . . . . . . . . . . Largest Inventory Capacity 25 | 8 25 25 25 25 25 25 25 20 20 20 20 20 20 20 20 20 20 20 20 20 20 20 20 25 25 25 25 Average Capacity 21 | 6 23 25 25 25 25 24 15 17 20 20 20 20 20 20 20 20 20 20 20 20 20 20 20 22 25 20 24 Most Carried 25 | 6 13 22 25 23 25 25 22 20 20 20 20 20 20 20 20 20 20 20 20 20 20 20 20 25 25 25 25 Average Carried 19 | 3 9 19 22 21 22 23 14 16 19 19 19 19 19 19 18 19 19 20 18 19 19 19 19 20 24 13 22 Final Capacity 25 | 8 25 25 25 25 25 25 15 20 20 20 20 20 20 20 20 20 20 20 20 20 20 20 20 25 25 25 25 Final Carried 25 | 6 13 21 22 21 24 21 15 20 20 20 20 20 20 19 20 20 20 20 19 19 20 20 19 22 25 24 24 Class Distribution -------------------- 40% | Scavenger-Mutant 7% | Commander-Gunner 7% | Scavenger-Tank 7% | Mutant 7% | Trapper-Mutant 6% | Scavenger-Gladiator 4% | Generator-Gunner 4% | Commander-Mutant 4% | Scavenger-Gunner 3% | Tank Dominant Class ---------------- Mutant | -10/Materials Scavenger-Mutant | -10/Mines Scavenger-Gunner | -9/Materials Commander-Gunner | -9/Storage Scavenger-Gunner | -9/Recycling Commander-Gunner | -9/Scraptown Scavenger-Tank | -6/Factory Scavenger-Tank | -6/Lower Caves Scavenger-Mutant | -6/Lower Caves Scavenger-Mutant | -6/Zion Scavenger-Mutant | -5/Proximity Caves Trapper-Mutant | -5/Factory Scavenger-Mutant | -5/Garrison Trapper-Mutant | -5/Factory Scavenger-Mutant | -4/Factory Scavenger-Mutant | -4/Upper Caves Trapper-Mutant | -4/Upper Caves Scavenger-Gladiator | -4/Warlord Scavenger-Gladiator | -3/Proximity Caves Scavenger-Gladiator | -3/Research Scavenger-Gladiator | -3/Testing Scavenger-Tank | -2/Research Scavenger-Mutant | -2/Quarantine Tank | -2/Protoforge Wizard-Mutant | -1/Access Scavenger-Mutant | -1/Command Generator-Gunner | -1/Access_0 Resources | -11 -10 -10 -9 -9 -9 -9 -6 -6 -6 -6 -5 -5 -5 -5 -4 -4 -4 -4 -3 -3 -3 -2 -2 -2 -1 -1 -1 ----------- Run | Yrd Mat Min Mat Sto Rec Scr Fac Low Low Zio Pro Fac Gar Fac Fac Upp Upp War Pro Res Tes Res Qua Frg Acc Com Ac0 Matter Collected 17470 | 288 603 339 386 461 13 660 568 146 398 1404 961 100 223 225 88 227 629 . 440 375 1091 20 307 2779 1200 1562 1977 Remotely 372 | . . . . . . 253 . . . 119 . . . . . . . . . . . . . . . . . Salvage Created 37429 | 108 696 241 696 411 . 182 756 605 104 792 694 189 1282 864 122 901 571 . 780 480 1778 255 807 6679 5401 8043 3992 Parts 1596 | 7 53 7 66 25 . 6 20 22 5 61 18 4 44 32 9 26 32 . 30 19 68 9 42 333 206 274 178 Haulers Intercepted 13 | . 2 . 4 . . . 2 . . . . 1 . 2 . . . . 1 . . . . . 1 . . Recyclers Shooed 8 | . 1 . 3 . . . 1 . . . . . . . . . . . . . . . . . 2 1 . Parts Field Recycled . | . . . . . . . . . . . . . . . . . . . . . . . . . . . . Retrieved Matter . | . . . . . . . . . . . . . . . . . . . . . . . . . . . . Parts Self-Destructed 136 | . . . . . . . . 28 8 . 30 . . . . 19 32 . 19 . . . . . . . . Prevented 42 | . . . . . . . . 1 2 3 14 . . . . 4 18 . . . . . . . . . . Parts Restored 12 | . . . . . . . . . . . . . . . . . . . . . . . . 12 . . . Faulty 12 | . . . . . . . . . . . . . . . . . . . . . . . . 12 . . . Kills | -11 -10 -10 -9 -9 -9 -9 -6 -6 -6 -6 -5 -5 -5 -5 -4 -4 -4 -4 -3 -3 -3 -2 -2 -2 -1 -1 -1 ------- Run | Yrd Mat Min Mat Sto Rec Scr Fac Low Low Zio Pro Fac Gar Fac Fac Upp Upp War Pro Res Tes Res Qua Frg Acc Com Ac0 Combat Hostiles Destroyed 518 | . 19 6 24 9 . 4 3 4 1 2 9 1 21 13 5 5 12 . 9 7 19 5 10 93 100 95 42 Melee 239 | . . . . . . . 2 3 1 1 8 1 17 8 1 5 6 . 6 5 12 . 3 50 32 43 35 Guns 50 | . 19 3 8 6 . . . . . . . . . . . . . . . . 2 . . 10 2 . . Cannons 53 | . . 3 . . . 3 1 . . . . . 1 . . . 2 . 1 1 4 1 3 11 10 12 . AOE 140 | . . . 16 3 . 1 . 1 . . . . 3 5 4 . 4 . 2 . . 3 . 13 48 37 . Classes Destroyed 36 | 2 5 . 2 1 . 2 2 1 1 4 1 . . 1 . . . . 1 2 3 . . 5 3 . . Worker 8 | . . . . . . . 1 . . . . 1 . 3 . . . . . . 2 1 . . . . . Builder 5 | . . . 1 . . . . . . . . . . . . . . . . . . . . 1 3 . . Tunneler 1 | 1 . . . . . . . . . . . . . . . . . . . . . . . . . . . Hauler 13 | . 2 . 4 . . . 2 . . . . 1 . 2 . . . . 1 . . . . . 1 . . Recycler 17 | 1 1 . . 2 . . 4 . . . 1 . . . . . . . . . 1 . . . 3 4 . Carrier 1 | . . . . . . . . . . . . . . . . . . . . . . . . . 1 . . Minesweeper 3 | . . . . . . . . . . . 1 . . . . 2 . . . . . . . . . . . Mechanic 7 | . . . . . . . . . . . . . . . . . . . . . 1 . . 1 3 2 . Operator 5 | . 1 . 1 . . . . . . . . . . . . . . . . . 1 . . 1 . 1 . Drone 5 | . . . . . . . . . . . . . . . . . . . . . . . . 5 . . . Watcher 17 | . 2 . 2 . . . . . . . 1 . . . . . . . . 1 2 . 1 1 4 3 . Swarmer 57 | . 11 . 16 3 . . . . 1 . . . 7 . 4 2 5 . . 3 . . . . 5 . . Cutter 1 | . . . . . . . . . . . . . . . . . . . . . . . . . . . 1 Saboteur 15 | . . . . . . . . . . . . . . . . . . . . . 1 . . 3 7 4 . Grunt 142 | . 8 6 5 2 . . 2 . . . 5 1 5 7 . 2 5 . 6 . 11 2 3 12 27 33 . Brawler 27 | . . . . 1 . . . . . . 1 . 3 1 . . . . . . 4 . 1 3 2 11 . Duelist 9 | . . . . . . . . . . . 1 . 1 . . . . . . . . . . 2 2 3 . Protector 9 | . . . . . . . . . . . . . . 1 . . . . . . . . . 1 2 5 . Researcher 7 | . . . . . . . . . . . . . . . . . . . . . 4 . . 3 . . . Sentry 31 | . . . 3 3 . . . 1 . . 1 . 2 1 1 1 . . 1 1 . . . 9 4 3 . Specialist 10 | . . . . . . . . . . . . . . . . . . . . 1 . 2 . 3 4 . . Hunter 36 | . . . . . . . . 2 . . 1 . . 2 . . 2 . . 1 . . . 6 17 5 . Programmer 58 | . . . . . . . 1 1 . . . . 3 1 . . . . 2 . 3 . 2 23 13 9 . Heavy 5 | . . . . . . . . . . . . . . . . . . . . 1 . 1 . . 2 1 . Q-Series 2 | . . . . . . . . . . . . . . . . . . . . . . . . 2 . . . Behemoth 3 | . . . . . . . . . . . . . . . . . . . 1 . . . . . 2 . . Quarantine Guard 4 | . . . . . . . . . . . . . . . . . . . . . . . 4 . . . . M Guard 2 | . . . . . . . . . . . . . . . . . . . . . . . . . . 2 . Enhanced Grunt 26 | . . . . . . . . . . . . . . . . . . . . . . . . . . . 26 Enhanced Sentry 3 | . . . . . . . . . . . . . . . . . . . . . . . . . . . 3 Enhanced Hunter 7 | . . . . . . . . . . . . . . . . . . . . . . . . . . . 7 Hotshot 5 | . . . . . . . . . . . . . . . . . . . . . . . . 5 . . . Decapitator 10 | . . . . . . . . . . . . . . . . . . . . . . . . 10 . . . Immortal 2 | . . . . . . . . . . . . . . . . . . . . . . . . 2 . . . Combat Programmer 2 | . . . . . . . . . . . . . . . . . . . . . . . . . . 2 . Investigator 1 | . . . . . . . . . . . . . . . . . . . . . . . . . . 1 . Striker 15 | . . . . . . . . . . . . . . . . . . . . . . . . . 9 6 . Executioner 11 | . . . . . . . . . . . . . . . . . . . . . . . . . 4 7 . Alpha 7 4 | . . . . . . . . . . . . . . . . . . . . . . . . 4 . . . V-Series 4 | . . . . . . . . . . . . . . . . . . . . . . . . 4 . . . Explorer 2 | . . . . . . 2 . . . . . . . . . . . . . . . . . . . . . Scrapper 2 | . . . . . . 2 . . . . . . . . . . . . . . . . . . . . . Zionite 40 | . . . . . . . . . . 40 . . . . . . . . . . . . . . . . . Decomposer 4 | . . . . . . . . . 1 . . . . . . 3 . . . . . . . . . . . Packrat 2 | . . . . . . . . . . . . . . . . 2 . . . . . . . . . . . Samaritan 4 | . . . . . . . . . 1 . . . . . . 2 . . 1 . . . . . . . . Tinkerer 1 | . . . . . . . . . . 1 . . . . . . . . . . . . . . . . . Butcher 1 | . . . . . . . . . . 1 . . . . . . . . . . . . . . . . . Guerrilla 2 | . . . . . . . . . . . . . . . . . . . . . . . . . . 2 . Mutant 1 | . . . . . . . . . . 1 . . . . . . . . . . . . . . . . . Best Kill Streak 36 | 2 5 1 14 3 . 2 2 2 1 4 3 2 5 11 4 2 5 . 5 3 6 6 4 13 36 22 4 Combat Bots Only 31 | . 5 1 12 3 . 2 1 2 1 1 3 1 5 7 4 2 5 . 5 3 3 5 4 11 31 22 4 Max Kills in Single Turn 8 | 1 1 1 4 2 . 1 1 1 1 3 1 1 3 7 4 1 4 . 1 2 1 2 3 5 8 8 2 Gunslinging 1 | . . . . . . . . . . . . . . . . . . . . . . . . 1 . . . Exploded 8 | . . . 4 2 . 1 . 1 . . . . 3 4 4 . 4 . 1 . . 1 . 5 8 8 . Melee 2 | . . . . . . . 1 1 1 1 1 1 1 1 1 1 1 . 1 2 1 . 1 2 2 2 2 Uniques/NPCs Destroyed 9 | . . . . . . 1 . . . 1 . . . . . . . . . . . . . . . 2 5 Triborg (-9/Scraptown) Imprinter (-6/Zion) MAIN.C Shell (-1/Command) MAIN.C (-1/Command) A6 (-1/Access_0) A5 (-1/Access_0) A4 (-1/Access_0) Architect (-1/Access_0) A3 (-1/Access_0) Combat | -11 -10 -10 -9 -9 -9 -9 -6 -6 -6 -6 -5 -5 -5 -5 -4 -4 -4 -4 -3 -3 -3 -2 -2 -2 -1 -1 -1 -------- Run | Yrd Mat Min Mat Sto Rec Scr Fac Low Low Zio Pro Fac Gar Fac Fac Upp Upp War Pro Res Tes Res Qua Frg Acc Com Ac0 Hostile Shots Fired 5847 | . 109 23 72 31 2 20 76 76 24 105 38 . 116 111 12 34 82 . 74 80 205 72 142 1543 632 1013 1155 Missed 2798 | . 23 4 18 15 1 3 25 19 10 45 8 . 32 29 6 9 19 . 25 26 84 15 58 765 489 360 710 Deflected 71 | . . . . . . . . . . . . . . . . . 2 . 1 1 4 4 1 37 3 10 8 Hits 3049 | . 86 19 54 16 1 17 51 57 14 60 30 . 84 82 6 25 63 . 49 54 121 57 84 778 143 653 445 Melee 113 | . . . . 1 . 1 . . . 13 11 . 6 1 . . . . . . 4 . . 34 4 34 4 Projectile 2936 | . 86 19 54 15 1 16 51 57 14 47 19 . 78 81 6 25 63 . 49 54 117 57 84 744 139 619 441 AOE 23 | . 1 . . . . . 1 . . . . . . . . . . . . . . . . 5 . 16 . Critical Strikes 212 | . . . 2 2 . 1 1 1 . 2 4 . 4 3 . 1 4 . 2 1 5 1 6 68 6 41 57 Actively Blocked 59 | . . . . . . . . . . . . . . . . . . . . . . . . . 6 18 35 Part Disruptions 26 | . . . . . . . . . . 1 . . . . . . . . . . 1 . . 9 1 9 5 Damage Taken 65626 | . 851 230 796 269 14 553 1091 805 563 1470 1263 . 1166 1973 156 577 1366 . 1294 667 1428 1342 1930 22190 2657 10371 10604 Core 5862 | . 170 52 136 40 . 18 76 64 52 159 101 . 217 305 8 67 250 . 78 29 106 69 64 900 221 873 1807 Absorbed by Shields 15834 | . . . . . . . . . . . . . 707 . . . . . . 140 1419 462 677 764 1389 5444 4832 Reduced by Siege Mode 12 | . . . . . . . . . . . . . . . . . . . . . . . . . . 12 . Redirected to Shielding 88 | . . . . . . . . . . . . . . . . . . . . . . . . . 88 . . Ignored by Resistances 7541 | . . . . . . . . . . . . . 73 . . . 146 . 161 106 . . . 469 411 5404 771 Regen/Repaired (Parts) 18367 | . . . . . . . . . . . . . . . . . . . . . 796 315 1922 10935 . 4399 . Core Remaining (%) 68 | 100 . 11 . . . 77 . . . . 82 . . 46 . . . . 79 . 89 . . 54 . . 75 Volleys Fired 557 | 2 94 18 54 21 1 14 28 2 . 104 . . 1 9 1 1 1 . 8 12 41 7 4 42 39 42 11 Largest 3 | 2 2 2 3 3 3 3 3 1 . 1 . . 1 1 1 1 1 . 1 1 1 1 1 3 2 1 2 Hottest 200 | 40 40 95 91 126 159 103 131 33 . 43 . . 39 105 39 105 39 . 39 105 200 200 80 120 90 80 124 Shots Fired 869 | 4 188 36 113 58 3 32 61 3 . 104 . . 1 10 1 2 1 . 8 12 42 7 4 81 40 42 16 Gun 454 | 4 188 23 101 56 3 . . . . . . . . . . . . . . . 10 2 . 58 6 2 1 Cannon 147 | . . 13 . . . 29 61 2 . . . . . 6 . 2 . . . 2 5 5 . 2 5 . 15 Launcher 220 | . . . 12 2 . 2 . . . 104 . . 1 4 1 . 1 . 5 . . . 2 17 29 40 . Special 48 | . . . . . . 1 . 1 . . . . . . . . . . 3 10 27 . 2 4 . . . Kinetic 499 | 4 188 28 86 37 1 29 44 1 . . . . . . . . . . . . . . . 57 11 . 13 Thermal 86 | . . 8 . 19 2 . 17 1 . . . . . 6 . 2 . . . 2 15 7 . 3 . 1 3 Explosive 143 | . . . 12 2 . 2 . . . 62 . . 1 4 1 . 1 . 5 . . . . 8 29 16 . Electromagnetic 93 | . . . 15 . . . . . . 42 . . . . . . . . . . . . 2 9 . 25 . Robot Hit Streak 48 | 3 13 6 19 15 20 22 8 2 . 4 . . . 6 . . . . 2 7 12 3 2 22 41 48 3 Robot Miss Streak 6 | . 6 4 3 2 . 4 5 1 . 2 . . . 2 1 3 . . 1 1 4 2 2 4 2 2 3 Penetration Max . | . . . . . . . . . . . . . . . . . . . . . . . . . . . . Secondary Targets 6 | . 3 . . 1 . . . . . . . . . . . . . . . . . . . 2 . . . Max Gunslinging Chain 1 | . 1 . . 1 . . . . . . . . . . . . . . . . . . . 1 . . . Autonomous 159 | . . . . . . . . . . . . . . . . . 7 . 4 . 7 1 8 43 23 52 14 Shots Hit Robots 1708 | 3 112 24 76 38 3 14 42 21 6 45 40 9 81 28 4 50 22 . 38 25 89 17 21 308 145 228 219 Core Hits 1231 | 3 45 12 41 20 1 9 18 7 4 47 15 2 37 33 6 13 16 . 23 7 34 9 23 187 218 286 115 Critical Kills 4 | . . . . . . . . . . . . . . 1 . . . . . . 1 . . 2 . . . Critical Parts Destroyed 4 | . . . . . . . . . . 1 . . . . . 1 . . . . . . . 2 . . . Critical Strikes 67 | . . 1 . . . . 3 . . 2 . . 3 4 2 6 2 . 2 . 8 . . 22 4 4 4 Burn 1 | . . 1 . . . . . . . . . . . . . . . . . . . . . . . . . Meltdown 1 | . . . . . . . . . . . . . . 1 . . . . . . . . . . . . . Destroy 6 | . . . . . . . . . . . . . . . . . . . . . 2 . . 4 . . . Blast 3 | . . . . . . . 3 . . . . . . . . . . . . . . . . . . . . Smash 2 | . . . . . . . . . . 1 . . . . . 1 . . . . . . . . . . . Sever 5 | . . . . . . . . . . 1 . . 2 1 . 1 . . . . . . . . . . . Impale 3 | . . . . . . . . . . . . . 1 . . . . . . . . . . 2 . . . Melee Attacks 1597 | . . . 1 . . . 12 23 9 66 64 11 104 28 8 63 29 . 37 24 92 20 38 356 134 222 256 Impact 19 | . . . 1 . . . . . . 10 5 . . . . 2 1 . . . . . . . . . . Slashing 1509 | . . . . . . . 12 23 8 47 49 7 80 26 8 61 27 . 32 23 92 20 32 352 132 222 256 Piercing 64 | . . . . . . . . . 1 9 10 2 21 2 . . 1 . 5 1 . . 6 4 2 . . Sneak Attacks 106 | . . . . . . . 3 . 2 1 8 5 7 2 . 12 . . 16 3 11 . 1 7 10 13 5 Combat Hostiles 15 | . . . . . . . . . . . . . 1 . . . . . . 2 1 . 1 . 4 4 2 Follow-up Attacks 126 | . . . . . . . . . 1 15 18 2 28 5 1 6 2 . 1 1 1 3 1 20 3 7 11 Damage Inflicted 150435 | 36 1186 389 2162 966 57 392 1955 1135 344 3812 1757 413 3780 2702 406 2747 2185 . 4088 1150 5473 2600 2000 29068 27574 33374 18684 Guns 5348 | 36 1186 248 1171 773 57 . . . . . . . . . . . . . . . 279 52 . 1387 117 42 . Cannons 16731 | . . 141 . . . 279 1182 59 . 58 . . 78 109 . 38 612 . 335 72 764 749 734 3591 2035 4474 1421 Explosions 39045 | . . . 991 193 . 113 336 . . 2331 . . 258 1721 244 . 298 . 1033 . 144 1084 270 5282 14709 10038 . Melee 89165 | . . . . . . . 437 1076 344 1423 1757 413 3435 872 162 2709 1275 . 2720 1078 4286 715 996 18749 10713 18742 17263 Ramming 146 | . . . . . . . . . . . . . 9 . . . . . . . . . . 59 . 78 . Kinetic 5755 | 36 1186 310 957 290 12 279 914 33 . 58 . . 78 . . . . . . . . . . 1387 117 . 98 Thermal 6858 | . . 79 . 483 45 . 268 26 . 61 . . . 1402 . 38 . . . 72 523 1811 . . . 1914 136 Explosive 31274 | . . . 991 193 . 113 336 . . 1329 . . 258 428 244 . 298 . 1033 . 62 . . 4901 14709 6379 . Electromagnetic 3593 | . . . 214 . . . . . . 941 . . . . . . . . . . . . 270 381 . 1787 . Impact 515 | . . . . . . . . . . 198 94 . . . . 162 61 . . . . . . . . . . Slashing 87031 | . . . . . . . 437 1076 344 1110 1417 385 2860 849 162 2547 1178 . 2445 1078 4286 715 807 18617 10713 18742 17263 Piercing 1619 | . . . . . . . . . . 115 246 28 575 23 . . 36 . 275 . . . 189 132 . . . Phasic 13644 | . . . . . . . . . . . . . . . . . 612 . 335 . 602 74 734 3591 2035 4474 1187 Highest Corruption 50 | . . . . 3 3 . . . 6 1 20 . 11 2 . . . . 2 1 10 3 7 37 8 50 12 Average Corruption 10 | . . . . 3 3 . . . 6 1 16 . 4 1 . . . . 2 1 2 2 6 15 2 27 4 Corruption Purged 129 | . . . . . . . . . . . . . 10 . . . . . . . . . . 38 17 64 . Corruption Blocked 22 | . . . . . . . . . . . . . . . . . . . 2 . . . . . 20 . . Effects 392 | . . . . 3 8 . . . 4 7 23 . 17 6 . . . . 1 1 16 1 28 141 10 94 32 Message Errors 90 | . . . . . 3 . . . 2 1 7 . 4 . . . . . 1 . 6 . 10 23 1 23 9 Matter Fused 83 | . . . . 1 4 . . . . 2 3 . 4 . . . . . . . 2 1 7 23 . 28 8 Heat Flow Errors 46 | . . . . . . . . . . 1 4 . 4 1 . . . . . . 1 . 5 15 2 9 4 Energy Discharges 56 | . . . . 2 . . . . 1 2 2 . 1 2 . . . . . . 3 . 4 23 2 10 4 Parts Rejected 10 | . . . . . . . . . . . . . . . . . . . . 1 2 . . 4 1 2 . Parts Fused 6 | . . . . . . . . . . . 3 . 1 . . . . . . . . . . 2 . . . Data Loss (minor) 44 | . . . . . 1 . . . 1 1 2 . 2 . . . . . . . . . . 21 2 11 3 Data Loss (major) 19 | . . . . . . . . . . . . . . 1 . . . . . . 1 . 2 7 . 5 3 Misfires 9 | . . . . . . . . . . . . . . 1 . . . . . . 1 . . 6 . . 1 Alerts 13 | . . . . . . . . . . . 2 . 1 1 . . . . . . . . . 4 2 3 . Misdirections 11 | . . . . . . . . . . . . . . . . . . . . . . . . 8 . 3 . Weapon Failures 5 | . . . . . . . . . . . . . . . . . . . . . . . . 5 . . . Overload Shots . | . . . . . . . . . . . . . . . . . . . . . . . . . . . . Overflow Damage 9584 | . . . 12 9 . . 28 258 . 133 299 129 46 71 . 727 157 . 302 100 689 120 138 1381 2116 2131 738 Projectiles 636 | . . . . . . . 28 6 . . . . . . . . 42 . . . 14 6 56 39 252 184 9 Explosions 974 | . . . 12 9 . . . . . 28 . . . 69 . . 14 . 26 . 16 48 . 215 274 263 . Melee 7974 | . . . . . . . . 252 . 105 299 129 46 2 . 727 101 . 276 100 659 66 82 1127 1590 1684 729 Knockbacks 18 | . . 2 . . . 3 8 . . 1 1 . . . . . . . . . . . . 1 . . 2 Impact 2 | . . . . . . . . . . . 1 . . . . . . . . . . . . 1 . . . Kinetic 16 | . . 2 . . . 3 8 . . 1 . . . . . . . . . . . . . . . . 2 Secondary . | . . . . . . . . . . . . . . . . . . . . . . . . . . . . Self-Inflicted Damage 3058 | . . . 162 . . 37 84 . . 33 . . . 222 . . . . 52 . 139 98 21 871 330 1009 . Shots 71 | . . . 5 . . 1 1 . . 2 . . . 3 . . . . 1 . 2 2 2 18 10 24 . Rammed . | . . . . . . . . . . . . . . . . . . . . . . . . . . . . Targets Rammed 6 | . . . . . . . . . . . . . 1 . . . . . . . . . . 2 . 3 . Kicked 6 | . . . . . . . . . . . . . 1 . . . . . . . . . . 2 . 3 . Crushed . | . . . . . . . . . . . . . . . . . . . . . . . . . . . . Highest Temperature 442 | . 12 290 81 146 93 118 90 20 . 122 228 . 272 237 . 42 2 . 16 60 173 274 442 278 269 330 265 Average Temperature 77 | . 6 113 24 49 54 37 35 13 . 64 108 . 98 79 . 19 2 . 12 32 35 56 128 99 158 97 120 Received Heat Transfer 6877 | . 282 123 240 132 9 217 57 78 39 99 95 . 345 366 54 130 283 . 102 123 234 156 557 2098 46 825 187 Effects 11 | . . 2 . . . . . . . . . . 2 . . . . . . . . . 4 . . 3 . Shutdowns 1 | . . . . . . . . . . . . . . . . . . . . . . . . . . 1 . Energy Bleed 3 | . . 1 . . . . . . . . . . . . . . . . . . . . . . . 2 . Interference 3 | . . 1 . . . . . . . . . . 2 . . . . . . . . . . . . . . Damage (major) 4 | . . . . . . . . . . . . . . . . . . . . . . . 4 . . . . Siege Activations 1 | . . . . . . . . . . . . . . . . . . . . . . . . . . 1 . Total Turns 4 | . . . . . . . . . . . . . . . . . . . . . . . . . . 4 . Longest Duration 4 | . . . . . . . . . . . . . . . . . . . . . . . . . . 4 . Martial Activations . | . . . . . . . . . . . . . . . . . . . . . . . . . . . . Shielding Activations . | . . . . . . . . . . . . . . . . . . . . . . . . . . . . Robots Disrupted 15 | . . . . . . . . . . 1 1 . . . . . . . 1 . 1 . 2 4 . 3 2 Combat Hostiles 13 | . . . . . . . . . . 1 . . . . . . . . 1 . . . 2 4 . 3 2 Robots Corrupted 9 | . . . . . . . . . . 2 1 . . . . . . . . . . . 4 . . 2 . Combat Hostiles 8 | . . . . . . . . . . 1 1 . . . . . . . . . . . 4 . . 2 . Parts Fried 39 | . . . 1 . . 1 . . . 8 2 . . 1 . . 1 . . . . . 19 . . 6 . Impact Corruptions 6 | . . . . . . . . . . 1 2 . . . . 3 . . . . . . . . . . . Robots Melted 1 | . . . . . . . . . . . . . . 1 . . . . . . . . . . . . . Combat Hostiles . | . . . . . . . . . . . . . . . . . . . . . . . . . . . . Parts Melted 15 | . . . . . . 2 . . . 1 . . . 2 . . . . . . . 1 3 . 6 . . Heat Transferred 6226 | . . 259 . 1100 112 . 370 9 . 50 . . . 912 . 9 . . . 74 537 1394 . . . 1388 12 Parts Sabotaged . | . . . . . . . . . . . . . . . . . . . . . . . . . . . . Parts Stolen . | . . . . . . . . . . . . . . . . . . . . . . . . . . . . Parts Stripped 234 | . . . . . . . . . . . . . . . . . . . . 8 15 5 . 78 33 . 95 Power Chain Reactions 13 | . . . . . . . . . . 5 . . . . . . . . . . . . . . . 8 . Alert | -11 -10 -10 -9 -9 -9 -9 -6 -6 -6 -6 -5 -5 -5 -5 -4 -4 -4 -4 -3 -3 -3 -2 -2 -2 -1 -1 -1 ------- Run | Yrd Mat Min Mat Sto Rec Scr Fac Low Low Zio Pro Fac Gar Fac Fac Upp Upp War Pro Res Tes Res Qua Frg Acc Com Ac0 Maximum Alert Level 5 | . . . 3 2 1 . 2 . . . . 1 5 5 5 . . . . 1 5 4 3 5 5 5 . Low Security (%) 16 | 100 100 100 50 . . . 50 . . . . . . . . . . . . 40 3 . . 6 . . . Level 1 11 | . . . 25 47 100 . 21 . . . . 100 8 . . . . . . 59 9 . . 3 . . . Level 2 11 | . . . 21 52 . . 27 . . . . . 5 . . . . . . . 4 . . 37 . . . Level 3 11 | . . . 1 . . . . . . . . . 13 . . . . . . . 2 . 100 20 1 . . Level 4 14 | . . . . . . . . . . . . . 12 13 69 . . . . . 35 100 . 24 45 . . Level 5 26 | . . . . . . . . . . . . . 60 36 30 . . . . . 44 . . 3 . 84 . High Security 8 | . . . . . . . . . . . . . . 50 . . . . . . . . . 3 52 15 . Max Security . | . . . . . . . . . . . . . . . . . . . . . . . . . . . . Sterilizations 1 | . . . . . . . . . . . . . . . . . . . . . . . 1 . . . . Peak Influence 3811 | 10 186 92 711 668 364 . 523 . . . . 371 2773 3530 1723 . . . . 352 2442 1527 895 1943 3749 3811 . Initial 2399 | . . 62 . 293 244 . . . . . . 354 216 1455 1723 . . . . 150 192 1368 847 418 1135 2399 . Average 1017 | . 95 25 255 462 294 . 206 . . . . 327 1734 2295 1577 . . . . 201 1471 1443 798 856 1933 2913 . Influence Increases 25289 | 10 643 203 1185 688 206 . 780 309 174 25 978 161 2827 2293 274 336 497 . 300 947 3248 239 389 2912 2950 2315 400 Destroy 0b10 Robot/C 12980 | . 380 140 480 340 40 . 260 180 120 20 700 60 1220 700 140 240 340 . 200 400 1360 100 200 1820 1980 1540 20 Destroy 0b10 Robot/NC 700 | 10 30 . 40 15 . . 45 30 . . 30 15 20 65 5 20 . . 20 25 85 5 5 55 80 100 . Destroy Leader 1912 | . 88 40 102 122 . . 66 40 20 . 50 12 50 128 32 10 60 . 20 84 178 20 52 222 330 186 . Allied During Kill 2206 | . . 3 . 186 10 . 86 59 34 5 198 20 651 264 42 66 97 . 60 115 256 . . 22 10 22 . Trap Triggered on 0b10 10 | . . . . . . . . . . . . . 10 . . . . . . . . . . . . . . Successful Hack 187 | . 21 5 24 5 6 . 16 . . . . 14 . . 7 . . . . 7 37 . . 24 9 12 . Select Force Hacks 210 | . 60 . . . 150 . . . . . . . . . . . . . . . . . . . . . . Disable Machine 1605 | . . . 135 . . . 150 . . . . . 15 375 . . . . . . 390 . 45 225 30 45 195 Anti-Garrison Action 800 | . . . . . . . . . . . . . 450 150 . . . . . . 150 . . . . 50 . Destroy Structure 2869 | . 4 . 152 20 . . 157 . . . . 40 336 336 48 . . . . 136 642 99 12 183 234 300 170 Advance Influence 150 | . . . . . . . . . . . . . . . . . . . . 150 . . . . . . . Partial Spotted 105 | . . . . . . . . . . . . . . . . . . . . . . . 45 15 15 15 15 Lose Combat Pursuer 615 | . 60 15 . . . . . . . . . . 75 15 . . . . . 30 150 15 30 150 30 45 . Miscellaneous 940 | . . . 252 . . . . . . . . . . 260 . . . . . . . . . 196 232 . . Influence Decreases 25133 | 10 483 363 490 756 597 236 267 626 370 25 414 416 363 1548 2145 1073 836 571 300 605 1156 1166 1152 1763 1094 1750 4558 Entered New Map 14742 | . . 98 . 402 383 236 . 190 38 . . 210 93 1318 1795 611 173 571 . . 150 1066 660 326 758 1350 4314 Time Decay 7053 | 10 443 251 360 214 214 . 207 416 272 25 354 206 . 110 190 452 583 . 250 310 526 100 452 752 286 70 . Search Patrol Dispatched 100 | . . . 100 . . . . . . . . . . . . . . . . . . . . . . . . Lost Part 1254 | . 40 10 30 40 . . 60 20 60 . 60 . 50 80 10 10 80 . 50 20 10 . . 220 50 150 204 Lost Ally 834 | . . 4 . 100 . . . . . . . . 220 40 . . . . . . 20 . 40 190 . 180 40 Purge Threat 1150 | . . . . . . . . . . . . . . . 150 . . . . 275 450 . . 275 . . . Squads Dispatched 151 | . 5 . 4 5 . . 5 . . . 2 2 . 18 3 . . . . 5 17 2 2 25 33 23 . Investigation 19 | . 4 . 2 1 . . . . . . 2 . . 2 . . . . . 1 3 . 1 . 2 1 . Extermination 21 | . . . . . . . 2 . . . . 1 . . 1 . . . . 1 3 . 1 10 2 . . Reinforcement 23 | . 1 . 1 1 . . . . . . . 1 . 2 1 . . . . 3 2 2 . 4 5 . . Assault 77 | . . . 1 . . . . . . . . . . 10 1 . . . . . 8 . . 11 24 22 . Garrison 11 | . . . . 3 . . 3 . . . . . . 4 . . . . . . 1 . . . . . . Intercept . | . . . . . . . . . . . . . . . . . . . . . . . . . . . . Searches Triggered 1 | . . . 1 . . . . . . . . . . . . . . . . . . . . . . . . Construction Impeded 3 | . . . . . . . . . . . . . . 1 . . . . . . . . . 2 . . . Haulers Reinforced 2 | . . . . . . . . . . . . 1 . 1 . . . . . . . . . . . . . Active Scanning Responses . | . . . . . . . . . . . . . . . . . . . . . . . . . . . . Cargo Convoy Interrupts . | . . . . . . . . . . . . . . . . . . . . . . . . . . . . Stealth | -11 -10 -10 -9 -9 -9 -9 -6 -6 -6 -6 -5 -5 -5 -5 -4 -4 -4 -4 -3 -3 -3 -2 -2 -2 -1 -1 -1 --------- Run | Yrd Mat Min Mat Sto Rec Scr Fac Low Low Zio Pro Fac Gar Fac Fac Upp Upp War Pro Res Tes Res Qua Frg Acc Com Ac0 Distress Signals 39 | . 2 . 3 1 . . 1 . . . 1 . . 3 1 . . . . . 1 . . 7 4 15 . Communications Jammed . | . . . . . . . . . . . . . . . . . . . . . . . . . . . . Distress Signals . | . . . . . . . . . . . . . . . . . . . . . . . . . . . . Times Spotted 1107 | . 36 10 26 22 2 14 19 8 7 94 26 4 60 39 6 11 15 . 14 20 54 7 18 215 132 182 66 Peak Tracking Total 33 | . 4 3 6 6 . 10 4 4 4 7 6 3 19 9 4 5 5 . 5 4 6 5 5 33 16 30 5 Tactical Retreats 38 | . 3 1 . . . . . . . 9 . . 5 1 . . . . . 2 5 1 1 5 2 3 . Traps | -11 -10 -10 -9 -9 -9 -9 -6 -6 -6 -6 -5 -5 -5 -5 -4 -4 -4 -4 -3 -3 -3 -2 -2 -2 -1 -1 -1 ------- Run | Yrd Mat Min Mat Sto Rec Scr Fac Low Low Zio Pro Fac Gar Fac Fac Upp Upp War Pro Res Tes Res Qua Frg Acc Com Ac0 Traps Triggered 16 | . 2 . . 1 . . . . . . . . 6 . . . . . . . . . 1 5 1 . . Indirectly 1 | . . . . . . . . . . . . . . . . . . . . . . . 1 . . . . Trap Hack Attempts . | . . . . . . . . . . . . . . . . . . . . . . . . . . . . Triggered . | . . . . . . . . . . . . . . . . . . . . . . . . . . . . Disarmed . | . . . . . . . . . . . . . . . . . . . . . . . . . . . . Reprogrammed . | . . . . . . . . . . . . . . . . . . . . . . . . . . . . Reused 1 | . . . . . . . . . . . . . 1 . . . . . . . . . . . . . . Traps Extracted . | . . . . . . . . . . . . . . . . . . . . . . . . . . . . Installed 3 | . . . . . . 1 . . . 1 . . 1 . . . . . . . . . . . . . . Triggered 1 | . . . . . . . . . . . . . 1 . . . . . . . . . . . . . . Most Traps Carried 9 | . . . 1 1 1 4 3 4 6 6 9 9 9 8 8 8 8 8 8 8 8 6 6 . . . . Machines | -11 -10 -10 -9 -9 -9 -9 -6 -6 -6 -6 -5 -5 -5 -5 -4 -4 -4 -4 -3 -3 -3 -2 -2 -2 -1 -1 -1 ---------- Run | Yrd Mat Min Mat Sto Rec Scr Fac Low Low Zio Pro Fac Gar Fac Fac Upp Upp War Pro Res Tes Res Qua Frg Acc Com Ac0 Machines Disabled 146 | . . . 9 . . 13 10 . . 4 4 . 8 26 . 3 . . . . 27 . 5 17 2 5 13 Max in Single Turn 5 | . . . 2 . . 2 1 . . 1 . . 1 5 . . . . . . 2 . 1 1 1 2 1 Garrison Access 5 | . . . . . . . . . . . . . . 1 . . . . . 1 1 . 1 1 . . . Garrison Relay 4 | . . . . . . . . . . . . . 4 . . . . . . . . . . . . . . Phase Generator 2 | . . . . . . . . . . . . . 1 . . . . . . . . . . . . 1 . Energy Cycler 1 | . . . . . . . . . . . . . . . . . . . . . . . . . 1 . . Machines Repaired . | . . . . . . . . . . . . . . . . . . . . . . . . . . . . Machines Dismantled 4 | . . . . . . . . . . 3 . . . . . . . . . . 1 . . . . . . Machines Sabotaged . | . . . . . . . . . . . . . . . . . . . . . . . . . . . . Overloaded Fab Kills . | . . . . . . . . . . . . . . . . . . . . . . . . . . . . Hacking | -11 -10 -10 -9 -9 -9 -9 -6 -6 -6 -6 -5 -5 -5 -5 -4 -4 -4 -4 -3 -3 -3 -2 -2 -2 -1 -1 -1 --------- Run | Yrd Mat Min Mat Sto Rec Scr Fac Low Low Zio Pro Fac Gar Fac Fac Upp Upp War Pro Res Tes Res Qua Frg Acc Com Ac0 Machines Accessed 78 | . 8 1 4 3 8 5 2 2 . 1 3 7 2 1 1 . 1 . . 3 9 1 3 6 4 2 1 Terminals 39 | . 5 1 3 3 3 . 1 1 . . 1 3 2 1 1 . . . . 1 6 . 2 4 1 . . Fabricators 7 | . . . . . . . . . . . 1 2 . . . . . . . . 1 1 . . 2 . . Repair Stations 6 | . 1 . . . . . . . . . . . . . . . . . . . . . 1 1 1 2 . Recycling Units 8 | . 2 . . . 5 . . . . . 1 . . . . . . . . . . . . . . . . Scanalyzers 5 | . . . 1 . . . . . . . . 1 . . . . . . . 1 2 . . . . . . Garrison Access 4 | . . . . . . . 1 . . . . 1 . . . . . . . 1 . . . 1 . . . Total Hacks 217 | . 19 5 16 5 10 34 2 3 . 6 8 16 5 4 4 . 1 . . 6 31 1 3 8 8 6 16 Successful 132 | . 7 2 8 1 6 34 1 3 . 6 7 7 1 . 2 . 1 . . 3 13 . 1 4 8 1 16 Failed 85 | . 12 3 8 4 4 . 1 . . . 1 9 4 4 2 . . . . 3 18 1 2 4 . 5 . Catastrophic 27 | . 3 . 2 1 3 . 1 . . . . 1 2 1 . . . . . 3 4 1 1 2 . 2 . Database Lockouts . | . . . . . . . . . . . . . . . . . . . . . . . . . . . . Manual 73 | . 12 . 5 5 13 . . . . . . 8 . 4 . . . . . 3 16 1 2 1 3 . . Terminals 102 | . 12 5 13 5 5 . 1 2 . . 4 7 5 4 4 . . . . 3 23 . 2 5 2 . . Fabricators 16 | . . . . . . . . . . . 2 4 . . . . . . . . 4 1 . . 5 . . Repair Stations 15 | . 5 . . . . . . . . . . . . . . . . . . . . . 1 2 1 6 . Recycling Units 9 | . 2 . . . 5 . . . . . 2 . . . . . . . . . . . . . . . . Scanalyzers 12 | . . . 3 . . . . . . . . 4 . . . . . . . 1 4 . . . . . . Garrison Access 5 | . . . . . . . 1 . . . . 1 . . . . . . . 2 . . . 1 . . . Terminal Hacks 97 | . 4 2 6 1 1 34 1 3 . 6 4 1 1 . 2 . 1 . . 1 9 . . 2 2 . 16 Record 46 | . . 1 . . . 23 . 2 . . 4 . . . . . . . . . . . . . . . 16 Part Schematic 6 | . . . . . . . . . . 6 . . . . . . . . . . . . . . . . . Robot Schematic 1 | . 1 . . . . . . . . . . . . . . . . . . . . . . . . . . Robot Analysis 12 | . . . 1 . 1 9 . . . . . . . . . . . . . . . . . . 1 . . Prototype ID Bank 3 | . 1 . 1 . . . . . . . . . . . . . . . . . 1 . . . . . . Open Door 3 | . . . . . . 1 . 1 . . . . . . . . 1 . . . . . . . . . . Branch Access Points 6 | . . . 1 . . . 1 . . . . 1 . . 1 . . . . 1 . . . . 1 . . Emergency Access Points 1 | . . . . . . . . . . . . . 1 . . . . . . . . . . . . . . Alert Level 1 | . . . 1 . . . . . . . . . . . . . . . . . . . . . . . . Unreport Threat 4 | . . . . . . . . . . . . . . . 1 . . . . . 3 . . . . . . Locate Traps 6 | . 2 . 2 . . . . . . . . . . . . . . . . . 1 . . 1 . . . Zone Layout 3 | . . 1 . 1 . . . . . . . . . . . . . . . . 1 . . . . . . Proto ID Catalog 2 | . . . . . . 1 . . . . . . . . . . . . . . . . . 1 . . . Protovariant Controls 3 | . . . . . . . . . . . . . . . . . . . . . 3 . . . . . . Fabricator Hacks 6 | . . . . . . . . . . . 2 1 . . . . . . . . . . . . 3 . . Network Status 1 | . . . . . . . . . . . . 1 . . . . . . . . . . . . . . . Load Schematic 3 | . . . . . . . . . . . 1 . . . . . . . . . . . . . 2 . . Build 2 | . . . . . . . . . . . 1 . . . . . . . . . . . . . 1 . . Repair Station Hacks 4 | . 1 . . . . . . . . . . . . . . . . . . . . . . 1 1 1 . Scan Component 2 | . . . . . . . . . . . . . . . . . . . . . . . . 1 . 1 . Refit 2 | . 1 . . . . . . . . . . . . . . . . . . . . . . . 1 . . Recycling Unit Hacks 1 | . . . . . . . . . . . 1 . . . . . . . . . . . . . . . . Retrieve Components 1 | . . . . . . . . . . . 1 . . . . . . . . . . . . . . . . Scanalyzer 5 | . . . 2 . . . . . . . . 1 . . . . . . . . 2 . . . . . . Retrieve Study 5 | . . . 2 . . . . . . . . 1 . . . . . . . . 2 . . . . . . Garrison Access Hacks 4 | . . . . . . . . . . . . 1 . . . . . . . 2 . . . 1 . . . Unlock Access 1 | . . . . . . . . . . . . 1 . . . . . . . . . . . . . . . Seal Access 2 | . . . . . . . . . . . . . . . . . . . . 1 . . . 1 . . . Coupler Status 1 | . . . . . . . . . . . . . . . . . . . . 1 . . . . . . . Unauthorized Hacks 15 | . 2 . . . 5 . . . . . . 3 . . . . . . . . 2 . 1 . 2 . . Terminals 3 | . . . . . . . . . . . . 2 . . . . . . . . 1 . . . . . . Botnet 3 | . . . . . . . . . . . . 2 . . . . . . . . 1 . . . . . . Fabricators 4 | . . . . . . . . . . . . 1 . . . . . . . . 1 . . . 2 . . Prioritize 1 | . . . . . . . . . . . . . . . . . . . . . . . . . 1 . . Fabnet 1 | . . . . . . . . . . . . . . . . . . . . . 1 . . . . . . Haulers 1 | . . . . . . . . . . . . 1 . . . . . . . . . . . . . . . Recompile 1 | . . . . . . . . . . . . . . . . . . . . . . . . . 1 . . Repair Stations 1 | . . . . . . . . . . . . . . . . . . . . . . . 1 . . . . Patch 1 | . . . . . . . . . . . . . . . . . . . . . . . 1 . . . . Recycling Units 7 | . 2 . . . 5 . . . . . . . . . . . . . . . . . . . . . . Tunnel 7 | . 2 . . . 5 . . . . . . . . . . . . . . . . . . . . . . Scanalyzers . | . . . . . . . . . . . . . . . . . . . . . . . . . . . . Garrison Access . | . . . . . . . . . . . . . . . . . . . . . . . . . . . . Data Cores Recovered 1 | . . . . . . . . . . . . . . . . . . . . . 1 . . . . . . Used 1 | . . . . . . . . . . . . . . . . . . . . . 1 . . . . . . Hacking Detections 54 | . 5 1 4 3 2 . 2 . . . 3 7 2 1 1 . . . . 3 8 1 2 3 4 2 . Full Trace Events 14 | . 1 . 2 . 1 . . . . . 2 . 1 1 . . . . . 1 3 . . . 1 1 . Feedback Events 1 | . . . . . . . . . . . . . . . . . . . . 1 . . . . . . . Corruption 1 | . . . . . . . . . . . . . . . . . . . . 1 . . . . . . . Feedback Blocked . | . . . . . . . . . . . . . . . . . . . . . . . . . . . . Robot Schematics Acquired 14 | . 1 . . . . . . . . 3 . . . . . . . . . . 6 . 2 2 . . . Robots Built . | . . . . . . . . . . . . . . . . . . . . . . . . . . . . Authchips . | . . . . . . . . . . . . . . . . . . . . . . . . . . . . Time . | . . . . . . . . . . . . . . . . . . . . . . . . . . . . Total Robot Build Rating . | . . . . . . . . . . . . . . . . . . . . . . . . . . . . Part Schematics Acquired 48 | . . . . . . . . . . 21 . . . . . . . . . . 13 . 8 6 . . . Parts Built 3 | . . . . . . . . . . . 1 . . . . . . . . . . . . . 2 . . Authchips . | . . . . . . . . . . . . . . . . . . . . . . . . . . . . Time 64 | . . . . . . . . . . . 47 . . . . . . . . . . . . . 17 . . Total Part Build Rating 17 | . . . . . . . . . . . 5 . . . . . . . . . . . . . 12 . . Part Studies Acquired 5 | . . . 2 . . . . . . . . 1 . . . . . . . . 2 . . . . . . Parts Repaired . | . . . . . . . . . . . . . . . . . . . . . . . . . . . . Time . | . . . . . . . . . . . . . . . . . . . . . . . . . . . . Parts Recycled . | . . . . . . . . . . . . . . . . . . . . . . . . . . . . Recycled Matter . | . . . . . . . . . . . . . . . . . . . . . . . . . . . . Retrieved Matter . | . . . . . . . . . . . . . . . . . . . . . . . . . . . . Retrieved Components . | . . . . . . . . . . . . . . . . . . . . . . . . . . . . Parts Scanalyzed . | . . . . . . . . . . . . . . . . . . . . . . . . . . . . Part Schematics Acquired . | . . . . . . . . . . . . . . . . . . . . . . . . . . . . Parts Damaged . | . . . . . . . . . . . . . . . . . . . . . . . . . . . . Bothacking | -11 -10 -10 -9 -9 -9 -9 -6 -6 -6 -6 -5 -5 -5 -5 -4 -4 -4 -4 -3 -3 -3 -2 -2 -2 -1 -1 -1 ------------ Run | Yrd Mat Min Mat Sto Rec Scr Fac Low Low Zio Pro Fac Gar Fac Fac Upp Upp War Pro Res Tes Res Qua Frg Acc Com Ac0 Used RIF Installer 1 | . . . . . . . . . . . . . 1 . . . . . . . . . . . . . . Hotswap 1 | . . . . . . . . . . . . . . . . . . . . 1 . . . . . . . Robots Hacked 27 | . . . . . . . . 1 . . . 1 . . . . . . 1 4 10 . . 8 1 1 . Non-combat 9 | . . . . . . . . . . . . 1 . . . . . . 1 3 2 . . 2 . . . Combat 18 | . . . . . . . . 1 . . . . . . . . . . . 1 8 . . 6 1 1 . Robot Hacks Applied 37 | . . . . . . . . 1 . . . 2 . . . . . . 1 7 22 . . 4 . . . parse_system 4 | . . . . . . . . 1 . . . 1 . . . . . . 1 1 . . . . . . . find_chute 1 | . . . . . . . . . . . . 1 . . . . . . . . . . . . . . . drop_inventory 1 | . . . . . . . . . . . . . . . . . . . . 1 . . . . . . . ignore_parts 1 | . . . . . . . . . . . . . . . . . . . . . 1 . . . . . . purge_threat 4 | . . . . . . . . . . . . . . . . . . . . 2 . . . 2 . . . locate_traps 1 | . . . . . . . . . . . . . . . . . . . . 1 . . . . . . . block_reporting 2 | . . . . . . . . . . . . . . . . . . . . 1 1 . . . . . . disable_scanner 7 | . . . . . . . . . . . . . . . . . . . . . 7 . . . . . . locate_prototypes 3 | . . . . . . . . . . . . . . . . . . . . . 3 . . . . . . report_analyses 10 | . . . . . . . . . . . . . . . . . . . . . 10 . . . . . . amplify_resonance 2 | . . . . . . . . . . . . . . . . . . . . 1 . . . 1 . . . formatsys_high 1 | . . . . . . . . . . . . . . . . . . . . . . . . 1 . . . Relay Couplers Released 31 | . . . . . . . 3 . . . . . 16 2 . . . . . 3 3 . 4 . . . . Machine Destruction 28 | . . . . . . . . . . . . . 16 2 . . . . . 3 3 . 4 . . . . Programmers 3 | . . . . . . . 3 . . . . . . . . . . . . . . . . . . . . Attached 4 | . . . . . . . . . . . . . 2 . . . . . . 1 . . 1 . . . . Fabnet Peak Effective % 3 | . . . . . . . . . . . . . . . . . . . . . . 3 3 3 1 1 1 Autooverrided 8 | . . . . . . . . . . . . . . . . . . . . . . . . 6 1 1 . Robots Rewired 27 | . . . . . . . . . . 1 5 . 15 . . . . . 1 . . . 2 3 . . . Allies Hacked 4 | . . . . . . . . . . . . . . . . . . . . . . . . 3 . 1 . Hacks Repelled . | . . . . . . . . . . . . . . . . . . . . . . . . . . . . Allies | -11 -10 -10 -9 -9 -9 -9 -6 -6 -6 -6 -5 -5 -5 -5 -4 -4 -4 -4 -3 -3 -3 -2 -2 -2 -1 -1 -1 -------- Run | Yrd Mat Min Mat Sto Rec Scr Fac Low Low Zio Pro Fac Gar Fac Fac Upp Upp War Pro Res Tes Res Qua Frg Acc Com Ac0 Total Allies 67 | . . 1 . 10 . 1 . . . 1 5 . 16 . . . . . 1 1 . . 2 13 1 13 2 Largest Group 12 | . . 1 . 10 5 6 1 1 1 2 5 1 12 5 1 1 1 1 2 1 1 . 1 3 1 4 2 Highest-Rated Group 959 | . . 31 . 88 48 512 455 455 455 532 511 455 959 638 455 455 455 455 571 568 574 . 58 151 40 232 238 Highest-Rated Ally 574 | . . 31 . 16 16 464 455 455 455 455 455 455 455 455 455 455 455 455 455 568 574 . 58 148 40 82 119 Total Orders 4 | . . . . . . 3 . . . . . . . . . . . . . . . . . 1 . . . STAY 3 | . . . . . . 2 . . . . . . . . . . . . . . . . . 1 . . . FOLLOW 1 | . . . . . . 1 . . . . . . . . . . . . . . . . . . . . . Ally Attacks 1135 | . . 6 . 103 4 57 35 12 36 242 79 4 159 106 13 23 29 . 16 41 85 . 3 44 . 21 17 Total Damage 55371 | . . 83 . 929 55 3541 2101 350 1538 9134 5257 247 7184 5283 424 1548 1386 . 1149 2794 10146 . 97 915 . 610 600 Kills 320 | . . 1 . 9 2 21 12 5 5 69 29 3 40 31 3 7 5 . 3 17 55 . . 1 . 2 . Allies Corrupted 2 | . . . . . . . . . . . . . 2 . . . . . . . . . . . . . . Allies Melted 1 | . . . . . . . . . . . . . 1 . . . . . . . . . . . . . . X0-1V1 Amusement Gains 679 | . 6 10 10 10 . 10 20 . 40 68 35 . 30 12 . 20 . . 10 42 72 . 40 90 59 39 56 Average Entertainment 68 | . 6 5 12 14 12 9 16 14 41 100 90 58 75 94 67 43 21 . 15 29 89 56 56 96 73 99 82 Good Acts 192 | . . . 2 . 2 . 4 3 6 13 7 2 5 4 1 2 3 . 4 4 11 1 5 33 18 23 39 Bad Acts 156 | . . 3 5 4 4 4 4 4 3 2 6 1 4 3 . 2 6 . 4 2 2 2 11 29 5 21 25 Intel | -11 -10 -10 -9 -9 -9 -9 -6 -6 -6 -6 -5 -5 -5 -5 -4 -4 -4 -4 -3 -3 -3 -2 -2 -2 -1 -1 -1 ------- Run | Yrd Mat Min Mat Sto Rec Scr Fac Low Low Zio Pro Fac Gar Fac Fac Upp Upp War Pro Res Tes Res Qua Frg Acc Com Ac0 Active Infowar (turns) 15345 | 11 1166 26 . 24 . . 505 865 550 173 814 419 25 194 367 1006 1264 . 691 358 . 69 178 1809 275 1325 3231 Optics 4582 | . . . . 24 . . . . . . . . . . . . . . . . . . . 2 . 1325 3231 Sensors 3837 | . . . . . . . . . . . . 205 23 . 366 1004 1262 . 691 285 . . 1 . . . . IFF 2402 | . . . . . . . . 865 550 173 814 . . . . . . . . . . . . . . . . Structural 6609 | . . . . . . . 504 . . . . 419 25 194 367 1004 1257 . . 357 . 69 177 459 161 . 1616 Seismic 1489 | 11 1166 26 . . . . 286 . . . . . . . . . . . . . . . . . . . . Cloaking 1620 | . . . . . . . . . . . . . . . . . . . . . . . . 1346 274 . . ECM 2 | . . . . . . . . . . . . . . . . . . . . . . . . 2 . . . Robot Analysis Total 12 | . . . 1 . 1 9 . . . . . . . . . . . . . . . . . . 1 . . Derelict Logs Recovered 12 | . . 1 . . . . . 3 2 2 2 . . . . 1 1 . . . . . . . . . . Drone Launches . | . . . . . . . . . . . . . . . . . . . . . . . . . . . . Drone Recoveries . | . . . . . . . . . . . . . . . . . . . . . . . . . . . . Exploration | -11 -10 -10 -9 -9 -9 -9 -6 -6 -6 -6 -5 -5 -5 -5 -4 -4 -4 -4 -3 -3 -3 -2 -2 -2 -1 -1 -1 ------------- Run | Yrd Mat Min Mat Sto Rec Scr Fac Low Low Zio Pro Fac Gar Fac Fac Upp Upp War Pro Res Tes Res Qua Frg Acc Com Ac0 Turns Passed 36911 | 71 1237 755 915 447 441 3898 714 1003 616 2381 1143 420 1959 454 392 1135 1806 133 979 687 1469 218 1129 4204 1321 3753 3231 Spaces Moved 22994 | 55 647 355 341 184 234 1965 424 686 451 1348 634 306 1267 305 266 787 1033 73 728 434 927 123 752 2732 833 2479 2625 Core 149 | 3 . . . . . 146 . . . . . . . . . . . . . . . . . . . . . Treads 27 | . 9 1 14 3 . . . . . . . . . . . . . . . . . . . . . . . Legs 18644 | . . . . . . . 4 664 451 1348 634 306 1267 305 266 787 1033 73 728 434 927 123 752 2732 833 2479 2498 Wheels 4047 | 52 638 354 327 181 234 1819 420 22 . . . . . . . . . . . . . . . . . . . Hover 127 | . . . . . . . . . . . . . . . . . . . . . . . . . . . 127 Flight . | . . . . . . . . . . . . . . . . . . . . . . . . . . . . Fastest Speed 15 | 50 80 175 165 165 165 50 110 110 120 120 120 115 120 115 120 116 108 108 108 108 107 120 120 80 80 105 15 Average Speed 124 | 78 132 175 184 180 178 184 117 120 120 122 121 118 120 118 131 120 153 108 111 110 115 120 120 104 103 111 99 Slowest Speed 320 | 80 320 320 235 235 180 210 165 150 120 195 190 120 120 120 183 183 185 108 114 113 120 120 120 250 115 250 178 Overloaded Moves 42 | . . . . . . . . . . . . . . . . . . . . . . . . . . . 42 Propulsion Burnouts . | . . . . . . . . . . . . . . . . . . . . . . . . . . . . Robots Hopped . | . . . . . . . . . . . . . . . . . . . . . . . . . . . . Potential Cave-ins 22 | . . . . . . . . . . . . . . . . . . . . . . . . 19 3 . . Cave-ins Triggered 2 | . . . . . . . . . . . . . . . . . 1 . . . . . . 1 . . . Teleports 13 | . . . . . . . . . . . . . . . . . . . . . . . . 11 . 1 1 Exploration Rate (%) 54 | 5 88 63 30 44 51 79 16 92 69 84 68 8 99 17 12 92 95 16 92 11 81 5 76 56 19 61 95 Regions Visited 27 Branch Regions 17 Pre-discovered Areas 14 | . 2 3 . . 5 3 . . 1 . . . . . . . . . . . . . . . . . . Known Exits Taken 18 | . . . 1 . . . 1 1 . 1 1 1 . 1 1 1 1 1 1 1 1 1 . 1 1 1 . Unknown Exits Taken 8 | 1 1 1 . 1 1 1 . . 1 . . . . . . . . . . . . . 1 . . . . Scrap Searched 25 | . . 1 . . . 7 . 5 2 1 2 . . . . 3 3 . 1 . . . . . . . . Spaces Dug 40 | . . . 1 . . . . 1 1 . 2 1 2 2 . . 1 . . 3 1 1 4 3 5 2 10 Terrain Destroyed 1226 | . . . 174 16 . 13 45 1 1 115 2 1 21 123 3 1 17 . 67 3 93 41 4 137 151 178 19 Melee 33 | . . . 1 . . . . 1 1 . 2 1 2 2 . . 1 . . 3 1 1 4 3 3 2 5 Projectile 51 | . . . . . . 2 18 . . . . . . 1 . 1 . . . . 4 1 . 5 5 . 14 AOE 1142 | . . . 173 16 . 11 27 . . 115 . . 19 120 3 . 16 . 67 . 88 39 . 129 143 176 . Terrain Rammed . | . . . . . . . . . . . . . . . . . . . . . . . . . . . . Walls Destroyed . | . . . . . . . . . . . . . . . . . . . . . . . . . . . . Machines Disabled . | . . . . . . . . . . . . . . . . . . . . . . . . . . . . Actions | -11 -10 -10 -9 -9 -9 -9 -6 -6 -6 -6 -5 -5 -5 -5 -4 -4 -4 -4 -3 -3 -3 -2 -2 -2 -1 -1 -1 --------- Run | Yrd Mat Min Mat Sto Rec Scr Fac Low Low Zio Pro Fac Gar Fac Fac Upp Upp War Pro Res Tes Res Qua Frg Acc Com Ac0 Total 29846 | 75 844 449 529 246 258 2233 570 826 515 1870 949 355 1604 357 295 910 1232 127 870 616 1201 169 923 3884 1267 3443 3229 Wait 2893 | 6 50 47 74 26 12 151 42 92 37 281 216 19 115 . 7 53 136 55 53 112 41 12 87 464 142 485 78 Move 22964 | 54 646 354 340 183 233 1964 423 685 450 1347 633 305 1266 304 265 786 1032 72 727 433 926 122 751 2729 832 2478 2624 Hop . | . . . . . . . . . . . . . . . . . . . . . . . . . . . . Pick Up 396 | 5 9 10 20 . 5 48 9 6 5 10 6 5 8 3 5 1 5 . 6 2 11 3 4 61 20 62 67 Fast Attach 319 | 7 1 3 4 5 1 8 20 6 3 16 10 2 9 3 4 3 8 . 7 10 25 . 13 52 28 30 41 Attach 191 | . 4 2 6 1 1 8 7 . 5 3 . 3 2 5 4 1 2 . 9 6 3 4 2 38 17 33 25 Detach 63 | . 2 1 . . 1 2 3 . 1 1 1 . . 3 . . 2 . 5 2 1 1 . 17 7 9 4 Swap 310 | 1 34 10 10 7 . 3 6 6 2 14 3 5 8 3 2 10 12 . 8 6 6 . 9 32 21 22 70 Drop 486 | . 4 4 20 3 4 34 20 6 5 21 13 8 13 5 . 2 7 . 8 10 45 3 16 88 30 58 59 Fire 557 | 2 94 18 54 21 1 14 28 2 . 104 . . 1 9 1 1 1 . 8 12 41 7 4 42 39 42 11 Melee 1442 | . . . 1 . . . 12 23 7 44 42 8 73 22 7 53 27 . 36 23 91 17 37 336 131 207 245 Ram . | . . . . . . . . . . . . . . . . . . . . . . . . . . . . Kick 6 | . . . . . . . . . . . . . 1 . . . . . . . . . . 2 . 3 . Crush . | . . . . . . . . . . . . . . . . . . . . . . . . . . . . Escape Stasis 19 | . . . . . . . . . . . . . . . . . . . . . 1 . . 5 . 13 . Rewire 160 | . . . . . . . . . . 1 25 . 107 . . . . . 3 . . . . 18 . 1 5 Trap 3 | . . . . . . 1 . . . 1 . . 1 . . . . . . . . . . . . . . Miscellaneous 37 | . . . . . . . . . . 27 . . . . . . . . . . 10 . . . . . . Route ------- -11/Scrapyard -10/Materials (discovered 4 exits: *Mat x2 / *Min / [*Sub]) -10/Mines (discovered 2 exits: *Mat x2) -9/Materials (discovered 3 exits: [*Mat] / Min / *Sto) -9/Storage -9/Recycling -9/Scraptown -6/Factory (discovered 8 exits: Fac x4 / *Low x2 / Ext x2) -6/Lower Caves -6/Lower Caves (discovered 2 exits: *Fac / *Zio) -6/Zion (discovered 2 exits: *Dee / *Pro) -5/Proximity Caves -5/Factory (discovered 7 exits: Fac x4 / Upp x2 / Gar) -5/Garrison (discovered 3 exits: *Fac x3) -5/Factory -4/Factory (discovered 6 exits: Res x4 / *Upp x2) -4/Upper Caves -4/Upper Caves (discovered 2 exits: *Res / *War) -4/Warlord -3/Proximity Caves -3/Research (discovered 3 exits: *Arm / *Tes x2) -3/Testing -2/Research (discovered 3 exits: Acc / *Qua x2) -2/Quarantine (discovered 2 exits: [*Sec] / *Frg) -2/Protoforge -1/Access (discovered 2 exits: Sur / *Com) -1/Command (discovered 3 exits: Sur x2 / *Ac0) -1/Access_0 0b11 Command History --------- Turn | Location | Event 15 | -11/Scrapyard | Discovered new exit (range 14) 72 | -11/Scrapyard | Entered Materials 236 | -10/Materials | Discovered new exit (range 12) 318 | -10/Materials | Build established: Mutant 670 | -10/Materials | Discovered new exit (range 5) 711 | -10/Materials | Discovered new exit (range 16) 961 | -10/Materials | Core integrity fell below 50% 1083 | -10/Materials | Discovered new exit (range 16) 1248 | -10/Materials | Prayed at D.C.S.S. Altar Unit 1309 | -10/Materials | Entered Mines 1312 | -10/Mines | Met a Derelict bent on vengeance 1320 | -10/Mines | Escorted by a lone wolf Derelict 1340 | -10/Mines | Learned location of Storage (-9) 1470 | -10/Mines | Discovered new exit (range 9) 1472 | -10/Mines | Joined a pair of Derelicts in attacking an 0b10 outpost 1527 | -10/Mines | Discovered new exit (range 12) 1618 | -10/Mines | Build established: Scavenger-Mutant 1637 | -10/Mines | Received a Rocket Launcher from a helpful Derelict 1753 | -10/Mines | A weapon hastily lodged in a ceiling crevice suddenly fell to the ground 1775 | -10/Mines | Core integrity fell below 20% 1887 | -10/Mines | X0-1V1 sent you into danger 1992 | -10/Mines | Learned location of Zion (-6) 2064 | -10/Mines | Entered Materials 2064 | -9/Materials | Evolved 2 slots: Propulsion x1, Weapon x1 2067 | -9/Materials | X0-1V1 activates XOMVISION 2246 | -9/Materials | X0-1V1 added 0b10 threat records associated with you (major) 2354 | -9/Materials | Identified exit to Mines 2354 | -9/Materials | Identified exit to Storage 2362 | -9/Materials | Build established: Scavenger-Gunner 2442 | -9/Materials | Discovered new exit (range 15) 2464 | -9/Materials | Search patrols dispatched 2674 | -9/Materials | X0-1V1 sent you to a vault 2787 | -9/Materials | Destroyed 12 combat bots 2864 | -9/Materials | First assault squad dispatched 2979 | -9/Materials | Entered Storage 3110 | -9/Storage | Assisted by bots powering up and referring to "LRC-V3" 3221 | -9/Storage | Garrison activated, responded to threat 3345 | -9/Storage | Discovered new exit (range 20) 3376 | -9/Storage | Used back door to open Recycling access 3426 | -9/Storage | Entered Recycling 3426 | -9/Recycling | Accompanied by 5 allies 3575 | -9/Recycling | Core integrity restored by X0-1V1 (+104) 3577 | -9/Recycling | X0-1V1 activates XOMVISION 3720 | -9/Recycling | X0-1V1 mutated your Propulsion slot to Weapon slot 3813 | -9/Recycling | Scanned before Scraplab entrance 3842 | -9/Recycling | Entered Scraplab 3857 | -9/Recycling | Discovered new exit (range 3) 3867 | -9/Recycling | Entered Scraptown 3867 | -9/Scraptown | Accompanied by 5 allies 3867 | -9/Scraptown | System corruption cleaned by C-Scrubber 4118 | -9/Scraptown | Build established: Commander-Mutant 4336 | -9/Scraptown | Visited Cave Peace 4373 | -9/Scraptown | Visited Assassins FH 4390 | -9/Scraptown | Visited CPS Storage 4451 | -9/Scraptown | Visited Red Mages 4459 | -9/Scraptown | Heard Great Nut preacher, LISTEN AND RECITE! 4463 | -9/Scraptown | Visited Bundlers 4598 | -9/Scraptown | Visited The Evicted 5000 | -9/Scraptown | Visited Symbiants 5018 | -9/Scraptown | Build established: Commander-Gunner 5113 | -9/Scraptown | Visited UFD Registry 5113 | -9/Scraptown | Registered with UFD as "Thunderhead" 5181 | -9/Scraptown | Visited LU-1G1's Boring Crew 5210 | -9/Scraptown | Visited Sword Containment 5231 | -9/Scraptown | Found Prototype Slashing Weapon 5278 | -9/Scraptown | Visited Science Guys 5345 | -9/Scraptown | Visited Junk Cannon Lab 5377 | -9/Scraptown | Visited Scrapoid Pod Storage 5404 | -9/Scraptown | Visited Infowarlord's Domain 5423 | -9/Scraptown | Visited Derelict Rescue Squad 5452 | -9/Scraptown | Visited Analyses Database 5503 | -9/Scraptown | Visited Abandonware Association 5518 | -9/Scraptown | Learned abandonware demo "OVRCLOCK.EXE" 5524 | -9/Scraptown | Learned abandonware demo "REPAIR.EXE" 5524 | -9/Scraptown | Learned abandonware demo "REVENGE.EXE" 5576 | -9/Scraptown | Visited Cartography Club 6016 | -9/Scraptown | Found Exp. Terrain Scanner 6061 | -9/Scraptown | Found DRS Beacon 6225 | -9/Scraptown | Found Deep Structural Scanner 6231 | -9/Scraptown | Learned location of Lower Caves (-6) 6231 | -9/Scraptown | Learned 16 Factory zone layouts 6231 | -9/Scraptown | Learned 4 Access zone layouts 6231 | -9/Scraptown | Learned 8 Lower Caves zone layouts 6231 | -9/Scraptown | Learned 20 Lower Caves zone layouts 6231 | -9/Scraptown | Learned 8 Upper Caves zone layouts 6231 | -9/Scraptown | Learned 20 Proximity Caves zone layouts 6231 | -9/Scraptown | Learned 24 Proximity Caves zone layouts 6231 | -9/Scraptown | Learned 4 Hub_04(d) zone layouts 6231 | -9/Scraptown | Learned Research emergency access door positions 6231 | -9/Scraptown | Learned location of 2 exits from Factory 6231 | -9/Scraptown | Learned location of 1 exit from Upper Caves 6231 | -9/Scraptown | Learned location of 2 exits from Proximity Caves 7397 | -9/Scraptown | X0-1V1 brought Wyrm Statue to life 7397 | -9/Scraptown | Attacked by Scraptown defenders 7525 | -9/Scraptown | Lost 3 allies 7600 | -9/Scraptown | Allies destroyed Triborg 7660 | -9/Scraptown | X0-1V1 caused items to flee you 7742 | -9/Scraptown | Discovered new exit (range 7) 7763 | -9/Scraptown | Attached CPS modules to Chaos Wyrm 7765 | -9/Scraptown | Entered Factory 7765 | -6/Factory | Accompanied by 1 ally 7765 | -6/Factory | Evolved 6 slots: Propulsion x4, Utility x2 7766 | -6/Factory | Identified exit to Factory 7882 | -6/Factory | Noticed a derelict Sapper rigging charges 7973 | -6/Factory | Identified Companion Sword 8040 | -6/Factory | X0-1V1 announced a LAN party 8052 | -6/Factory | Garrison activated, responded to threat 8114 | -6/Factory | Identified exit to Lower Caves 8114 | -6/Factory | Identified exit to Extension 8144 | -6/Factory | X0-1V1 vaporized surrounding terrain (radius 15) 8238 | -6/Factory | Spotted B-75 Beast 8255 | -6/Factory | Allies destroyed B-75 Beast 8328 | -6/Factory | X0-1V1 upgraded hostiles (x2) 8371 | -6/Factory | Lost 4 parts (2p2n) 8458 | -6/Factory | Sight range permanently improved by X0-1V1 (+2; -300 max core) 8465 | -6/Factory | X0-1V1 revealed exit location to -5/Factory 8479 | -6/Factory | Entered Lower Caves 8479 | -6/Lower Caves | Accompanied by 1 ally 8480 | -6/Lower Caves | Identified exit to Lower Caves 8537 | -6/Lower Caves | Learned Factory emergency access door positions 8544 | -6/Lower Caves | Spotted B-75 Beast 8571 | -6/Lower Caves | Allies destroyed B-75 Beast 8621 | -6/Lower Caves | Learned 4 Factory zone layouts 8803 | -6/Lower Caves | Build established: Scavenger-Tank 8906 | -6/Lower Caves | Learned Factory emergency access door positions 9049 | -6/Lower Caves | Attracted the attention of an 0b10 checkpoint 9482 | -6/Lower Caves | Entered another Lower Caves area 9482 | -6/Lower Caves | Accompanied by 1 ally 9507 | -6/Lower Caves | Discovered exit to Factory (range 11) 9637 | -6/Lower Caves | Spotted B-75 Beast 9650 | -6/Lower Caves | X0-1V1 upgraded hostiles (x1) 9650 | -6/Lower Caves | Spotted B-86 Titan 9666 | -6/Lower Caves | Allies destroyed B-86 Titan 9693 | -6/Lower Caves | Lost 4 parts (1p2u1w) 9884 | -6/Lower Caves | Discovered new exit (range 12) 9984 | -6/Lower Caves | Encountered a Warlord checkpoint 10028 | -6/Lower Caves | Heat dissipation permanently improved by X0-1V1 (+15; -75 max core) 10051 | -6/Lower Caves | Learned location of 1 exit from Factory 10098 | -6/Lower Caves | Entered Zion 10098 | -6/Zion | Accompanied by 1 ally 10099 | -6/Zion | Identified exit to Proximity Caves 10117 | -6/Zion | Build established: Scavenger-Mutant 10124 | -6/Zion | Found CR-A16's Pointy Stick 10359 | -6/Zion | Attacked by Zionites 10359 | -6/Zion | Spotted PS-57T(B) 10359 | -6/Zion | Spotted 0X-20C(B) 10370 | -6/Zion | Rewired PS-57T(B) 10374 | -6/Zion | Allies destroyed 0X-20C(B) 10397 | -6/Zion | X0-1V1 vaporized surrounding terrain (radius 17) 10430 | -6/Zion | Core integrity permanently improved by X0-1V1 (+350) 10564 | -6/Zion | Allies destroyed Imprinter 10624 | -6/Zion | Extracted access codes from Imprinter's data core 10688 | -6/Zion | Learned location of 1 exit from Factory 11189 | -6/Zion | Learned location of 1 exit from Lower Caves 11288 | -6/Zion | Found Prototype Device 11288 | -6/Zion | Identified Phasing AFG 11415 | -6/Zion | Identified exit to Deep Caves 11415 | -6/Zion | X0-1V1 revealed exit location to -6/Deep Caves 11418 | -6/Zion | X0-1V1 activates XOMVISION 11561 | -6/Zion | Forcibly received Sfc. Transmogifier from X0-1V1 11895 | -6/Zion | X0-1V1 vaporized surrounding terrain (radius 21) 12094 | -6/Zion | X0-1V1 activates XOMVISION 12191 | -6/Zion | Saw the warning signs outside the Deep Caves entrance 12479 | -6/Zion | Entered Proximity Caves 12479 | -5/Proximity Caves | Accompanied by 1 ally 12700 | -5/Proximity Caves | System corruption reached 10% 12702 | -5/Proximity Caves | X0-1V1 sent you into danger 12704 | -5/Proximity Caves | Learned Extension stockpile data 12704 | -5/Proximity Caves | Learned 6 Upper Caves zone layouts 12704 | -5/Proximity Caves | Learned 6 Lower Caves zone layouts 12795 | -5/Proximity Caves | Learned location of 1 exit from Proximity Caves 13063 | -5/Proximity Caves | Received a Behemoth hack from an annoying Tinkerer 13159 | -5/Proximity Caves | Snuck into a huge 0b10 base via the rear entrance 13207 | -5/Proximity Caves | Core integrity restored by X0-1V1 (+156) 13256 | -5/Proximity Caves | X0-1V1 vaporized surrounding terrain (radius 18) 13440 | -5/Proximity Caves | Lost 3 parts (2n1w) 13442 | -5/Proximity Caves | X0-1V1 activates XOMVISION 13498 | -5/Proximity Caves | Fabricated Tactical Coordination Suite? 13622 | -5/Proximity Caves | Entered Factory 13622 | -5/Factory | Accompanied by 1 ally 13622 | -5/Factory | Evolved 2 slots: Power x1, Utility x1 13623 | -5/Factory | Identified exit to Factory 13624 | -5/Factory | Identified exit to Upper Caves 14029 | -5/Factory | Identified exit to Garrison 14042 | -5/Factory | Entered Garrison 14042 | -5/Garrison | Accompanied by 1 ally 14042 | -5/Garrison | Spotted B-86 Titan 14054 | -5/Garrison | Allies destroyed B-86 Titan 14063 | -5/Garrison | Spotted B-75 Beast 14067 | -5/Garrison | X0-1V1 destroyed Phase Generator 14067 | -5/Garrison | Phase Generator disabled 14088 | -5/Garrison | Build established: Trapper-Mutant 14095 | -5/Garrison | Allies destroyed B-75 Beast 14104 | -5/Garrison | Rewired B-86 Titan 14113 | -5/Garrison | Rewired B-75 Beast 14166 | -5/Garrison | Garrison Relay disabled 14192 | -5/Garrison | Triggered checkpoint 14242 | -5/Garrison | Spotted B-75 Beast 14250 | -5/Garrison | Allies destroyed B-75 Beast 14252 | -5/Garrison | Triggered checkpoint 14270 | -5/Garrison | Triggered checkpoint 14292 | -5/Garrison | Triggered checkpoint 14326 | -5/Garrison | Triggered checkpoint 14546 | -5/Garrison | Discovered new exit (range 12) 14631 | -5/Garrison | X0-1V1 activates XOMVISION 14640 | -5/Garrison | Installed Relay Interface Framework 14674 | -5/Garrison | Garrison Relay disabled 14687 | -5/Garrison | Build established: Scavenger-Mutant 14738 | -5/Garrison | Triggered checkpoint 14746 | -5/Garrison | Triggered checkpoint 14846 | -5/Garrison | Triggered checkpoint 14960 | -5/Garrison | X0-1V1 caused items to flee you 14999 | -5/Garrison | Build established: Commander-Mutant 15142 | -5/Garrison | Discovered new exit (range 12) 15279 | -5/Garrison | System corruption reached 10% 15287 | -5/Garrison | Items stopped fleeing you 15302 | -5/Garrison | Lost 9 allies 15310 | -5/Garrison | Found Hvy. Reflective Plating 15341 | -5/Garrison | Lost 4 parts (1p2u1w) 15464 | -5/Garrison | Triggered checkpoint 15690 | -5/Garrison | Discovered new exit (range 4) 15725 | -5/Garrison | Garrison Relay disabled 15796 | -5/Garrison | Build established: Scavenger-Mutant 15916 | -5/Garrison | Garrison Relay disabled 16001 | -5/Garrison | Entered Factory 16001 | -5/Factory | Accompanied by 5 allies 16061 | -5/Factory | X0-1V1 added 0b10 threat records associated with you (major) 16204 | -5/Factory | P-70 Sage assimilated allied Soldier 6a 16226 | -5/Factory | High security lockdown imminent 16245 | -5/Factory | Garrison activated, responded to threat 16255 | -5/Factory | X0-1V1 whisked you away to safety 16283 | -5/Factory | Lost 3 parts (1n1u1w) 16306 | -5/Factory | High security lockdown engaged 16370 | -5/Factory | X0-1V1 downgraded hostiles (x1) 16425 | -5/Factory | Discovered exit to Factory (range 11) 16441 | -5/Factory | Destroyed 7 combat bots 16443 | -5/Factory | Core integrity fell below 50% 16455 | -5/Factory | Entered another Factory area 16455 | -4/Factory | Accompanied by 1 ally 16455 | -4/Factory | Evolved 2 slots: Utility x2 16456 | -4/Factory | Identified exit to Research 16461 | -4/Factory | Identified exit to Upper Caves 16464 | -4/Factory | Lost 4 parts (1p1n2u) 16585 | -4/Factory | X0-1V1 revealed exit location to -3/Research 16705 | -4/Factory | First assault squad dispatched 16847 | -4/Factory | Entered Upper Caves 16847 | -4/Upper Caves | Accompanied by 1 ally 16848 | -4/Upper Caves | Identified exit to Upper Caves 17162 | -4/Upper Caves | Attracted the attention of an 0b10 base 17301 | -4/Upper Caves | Attracted the attention of an 0b10 checkpoint 17396 | -4/Upper Caves | Spotted B-86 Titan 17414 | -4/Upper Caves | Allies destroyed B-86 Titan 17982 | -4/Upper Caves | Entered another Upper Caves area 17982 | -4/Upper Caves | Accompanied by 1 ally 17983 | -4/Upper Caves | Forged Quantum Companion 17983 | -4/Upper Caves | Discovered exit to Research (range 13) 18047 | -4/Upper Caves | Spotted B-86 Titan 18121 | -4/Upper Caves | Found DCF Scrap (11 items) 18416 | -4/Upper Caves | X0-1V1 caused items to flee you 18417 | -4/Upper Caves | X0-1V1 activates XOMVISION 18459 | -4/Upper Caves | Identified exit to Warlord 18459 | -4/Upper Caves | X0-1V1 revealed exit location to -4/Warlord 18505 | -4/Upper Caves | X0-1V1 sent you into danger 18580 | -4/Upper Caves | Items stopped fleeing you 18800 | -4/Upper Caves | Crushed by falling debris 18800 | -4/Upper Caves | Allies destroyed B-86 Titan 18817 | -4/Upper Caves | Build established: Trapper-Gladiator 19142 | -4/Upper Caves | Build established: Trapper-Mutant 19208 | -4/Upper Caves | X0-1V1 caused items to flee you 19319 | -4/Upper Caves | X0-1V1 vaporized surrounding terrain (radius 15) 19446 | -4/Upper Caves | Items stopped fleeing you 19726 | -4/Upper Caves | Lost 5 parts (1p1n2u1w) 19788 | -4/Upper Caves | Entered Warlord 19788 | -4/Warlord | Accompanied by 1 ally 19789 | -4/Warlord | Identified exit to Proximity Caves 19921 | -4/Warlord | Entered Proximity Caves 19921 | -3/Proximity Caves | Accompanied by 1 ally 19999 | -3/Proximity Caves | X0-1V1 upgraded hostiles (x2) 20032 | -3/Proximity Caves | Core integrity restored by X0-1V1 (+168) 20052 | -3/Proximity Caves | Build established: Scavenger-Gladiator 20149 | -3/Proximity Caves | Spotter reported a threat 20184 | -3/Proximity Caves | X0-1V1 activates XOMVISION 20327 | -3/Proximity Caves | Spotted B-86 Titan 20344 | -3/Proximity Caves | Rewired B-86 Titan 20349 | -3/Proximity Caves | Revealed the true nature of CR-A16's Pointy Stick 20649 | -3/Proximity Caves | Attracted the attention of an 0b10 checkpoint 20711 | -3/Proximity Caves | X0-1V1 activates XOMVISION 20880 | -3/Proximity Caves | Destroyed Titan 8a 20900 | -3/Proximity Caves | Entered Research 20900 | -3/Research | Accompanied by 1 ally 20900 | -3/Research | Evolved 2 slots: Utility x2 20901 | -3/Research | Identified exit to Armory 20959 | -3/Research | Chaos Wyrm evolved into Greater Chaos Wyrm 20962 | -3/Research | Found Wyrmplate 20965 | -3/Research | Attached CPS modules to Greater Chaos Wyrm 21175 | -3/Research | X0-1V1 vaporized surrounding terrain (radius 15) 21227 | -3/Research | X0-1V1 foreshadows a heat wave 21274 | -3/Research | Identified exit to Testing 21432 | -3/Research | Ambient heat levels rising (+10) 21580 | -3/Research | Expanded RIF knowledge: Hotswap 21587 | -3/Research | Entered Testing 21587 | -3/Testing | Accompanied by 1 ally 21667 | -3/Testing | Identified exit to Research 21667 | -3/Testing | X0-1V1 revealed exit location to -2/Research 21736 | -3/Testing | Protovariant out of control (PP-5DOD18SAYT) 21736 | -3/Testing | Unleashed a protovariant (PP-5DOD18SAYT) 21752 | -3/Testing | Garrison activated, responded to threat 21771 | -3/Testing | X0-1V1 redirected Transport squads to designated parking area 21825 | -3/Testing | Scanned by Researcher 21847 | -3/Testing | Found SHELL Armor 22042 | -3/Testing | Found Prototype Energy Gun 22042 | -3/Testing | Identified Warp Gun 22087 | -3/Testing | First assault squad dispatched 22089 | -3/Testing | Spotted Striker 22091 | -3/Testing | Found Prototype Device 22091 | -3/Testing | Identified Exp. Thermal Defense Suite 22095 | -3/Testing | Spotted Striker 22205 | -3/Testing | Found Gamma Bomb Array 22254 | -3/Testing | X0-1V1 vaporized surrounding terrain (radius 15) 22358 | -3/Testing | Found Corrupted Prototype Special Weapon 22358 | -3/Testing | Identified Gui. Remote Datajack 22382 | -3/Testing | Build established: Trapper-Mutant 22547 | -3/Testing | X0-1V1 downgraded hostiles (x2) 22607 | -3/Testing | Found Prototype Protection 22607 | -3/Testing | Identified Wyrmscale 22888 | -3/Testing | Found Prototype Energy Cannon 22888 | -3/Testing | Identified Imp. Potential Cannon 22892 | -3/Testing | Found Imp. Potential Cannon 22951 | -3/Testing | System corruption reached 10% 23056 | -3/Testing | Entered Research 23056 | -2/Research | Evolved 2 slots: Propulsion x1, Utility x1 23057 | -2/Research | Identified exit to Quarantine 23271 | -2/Research | Identified exit to Access 23271 | -2/Research | X0-1V1 revealed exit location to -1/Access 23274 | -2/Research | Entered Quarantine 23315 | -2/Quarantine | Found Prototype Device 23315 | -2/Quarantine | Identified Exp. Actuator Array 23321 | -2/Quarantine | Found Exp. Actuator Array 23476 | -2/Quarantine | Cryocooling Duct disabled 23478 | -2/Quarantine | Cryocooling Duct disabled 23491 | -2/Quarantine | Ambient heat levels rising (+20) 23491 | -2/Quarantine | Non-combat units ordered to evacuate 23493 | -2/Quarantine | Ambient heat levels rising (+20) 23493 | -2/Quarantine | Combat units ordered to evacuate 23593 | -2/Quarantine | Quarantine Guard activated 23678 | -2/Quarantine | Found Alien Slashing Weapon 23705 | -2/Quarantine | Spotted Quarantine Guard 23707 | -2/Quarantine | Spotted Quarantine Guard 23711 | -2/Quarantine | Spotted Quarantine Guard 23714 | -2/Quarantine | Spotted Quarantine Guard 23735 | -2/Quarantine | Build established: Scavenger-Mutant 23735 | -2/Quarantine | X0-1V1 vaporized surrounding terrain (radius 22) 23745 | -2/Quarantine | Cryocooling Duct disabled 23753 | -2/Quarantine | Cryocooling Duct disabled 23757 | -2/Quarantine | Destroyed Quarantine Guard 23757 | -2/Quarantine | Destroyed Quarantine Guard 23757 | -2/Quarantine | Destroyed Quarantine Guard 23758 | -2/Quarantine | Destroyed Quarantine Guard 23760 | -2/Quarantine | Ambient heat levels rising (+20) 23768 | -2/Quarantine | Ambient heat levels rising (+20) 23774 | -2/Quarantine | Found Prototype Device 23774 | -2/Quarantine | Identified Imp. Particle Accelerator 23775 | -2/Quarantine | X0-1V1 made a cryptic comment about sterilization and BL-4Z3 23848 | -2/Quarantine | Sterilization system engaged 23848 | -2/Quarantine | Non-combat units ordered to evacuate 23926 | -2/Quarantine | X0-1V1 announced a LAN party 23948 | -2/Quarantine | Combat units ordered to evacuate 23953 | -2/Quarantine | Spotted Quarantine Guard 24010 | -2/Quarantine | Spotted Quarantine Guard 24062 | -2/Quarantine | Found Alien Artifact 24062 | -2/Quarantine | Identified Phase Redirector 24135 | -2/Quarantine | Identified Sigix Broadsword 24136 | -2/Quarantine | Found Alien Artifact 24138 | -2/Quarantine | Identified Subatomic Replicator 24138 | -2/Quarantine | Forged Prototype Slashing Weapon 24148 | -2/Quarantine | Ambient heat levels rising (+10) 24166 | -2/Quarantine | Cryocooling Duct disabled 24298 | -2/Quarantine | Ambient heat levels rising (+10) 24311 | -2/Quarantine | Spotted Fortress 24329 | -2/Quarantine | X0-1V1 sent hostile B-74 Champion (x3) 24395 | -2/Quarantine | Discovered new exit (range 5) 24395 | -2/Quarantine | Discovered new exit (range 6) 24403 | -2/Quarantine | Entered Protoforge 24525 | -2/Protoforge | Superfortress began startup sequence 24551 | -2/Protoforge | Spotted B-90 Cyclops 24663 | -2/Protoforge | Spotted AP7-3 24704 | -2/Protoforge | Spotted Decapitator 24704 | -2/Protoforge | Spotted AP7-3 24705 | -2/Protoforge | System corruption reached 10% 24705 | -2/Protoforge | Spotted Decapitator 24705 | -2/Protoforge | Spotted Decapitator 24708 | -2/Protoforge | Destroyed Decapitator 24713 | -2/Protoforge | Destroyed Decapitator 24727 | -2/Protoforge | Destroyed Decapitator 24743 | -2/Protoforge | Destroyed AP7-3 24760 | -2/Protoforge | Destroyed AP7-3 24763 | -2/Protoforge | Lost 3 parts (1p1u1w) 24809 | -2/Protoforge | Destroyed 11 combat bots 24823 | -2/Protoforge | System corruption reached 30% 24823 | -2/Protoforge | Spotted Hotshot 24825 | -2/Protoforge | Spotted Hotshot 24827 | -2/Protoforge | Spotted Hotshot 24827 | -2/Protoforge | Spotted Hotshot 24827 | -2/Protoforge | Spotted Hotshot 24834 | -2/Protoforge | Destroyed Hotshot 24854 | -2/Protoforge | Destroyed Hotshot 24860 | -2/Protoforge | Destroyed Hotshot 24871 | -2/Protoforge | Weapon slot count temporarily expanded by X0-1V1 (+1) 24882 | -2/Protoforge | Destroyed Hotshot 24903 | -2/Protoforge | First assault squad dispatched 24931 | -2/Protoforge | Rewired Hotshot 25139 | -2/Protoforge | Watched by a mysterious "MATRIX" hacker 25160 | -2/Protoforge | Weapon slot count reverted to normal (-1) 25225 | -2/Protoforge | Found Prototype Device 25236 | -2/Protoforge | Found Cep. XC Strikerail 25239 | -2/Protoforge | Found Cep. XC Strikerail 25241 | -2/Protoforge | Found Cep. XC Strikerail 25244 | -2/Protoforge | Found Cep. XC Strikerail 25253 | -2/Protoforge | Spotted Immortal 25300 | -2/Protoforge | Destroyed Immortal 25311 | -2/Protoforge | Found Prototype Device 25311 | -2/Protoforge | Identified Cep. Antimissile System 25316 | -2/Protoforge | Found Prototype Device 25316 | -2/Protoforge | Identified Exp. Cloaking Device 25343 | -2/Protoforge | Found Prototype Processor 25384 | -2/Protoforge | X0-1V1 caused items to flee you 25522 | -2/Protoforge | Build established: Scavenger-Tank 25555 | -2/Protoforge | Items stopped fleeing you 25644 | -2/Protoforge | Spotted Decapitator 25644 | -2/Protoforge | Spotted Decapitator 25644 | -2/Protoforge | Spotted Decapitator 25649 | -2/Protoforge | Destroyed Decapitator 25652 | -2/Protoforge | Destroyed Decapitator 25656 | -2/Protoforge | Destroyed Decapitator 25773 | -2/Protoforge | Forge Plexus network access discovered 25820 | -2/Protoforge | Found Cep. Rapid Grenade Launcher 25822 | -2/Protoforge | Found Faulty Cep. Rapid Grenade Launcher 25826 | -2/Protoforge | Identified Crosscalibrator 25909 | -2/Protoforge | Found Faulty Cep. Beam Splitter 25914 | -2/Protoforge | Found Faulty Cep. Phase Shift Module 25921 | -2/Protoforge | Identified Exp. Melee Analysis Suite 25926 | -2/Protoforge | Found Cep. Reaction Jets 25928 | -2/Protoforge | Found Cep. Beam Splitter 25930 | -2/Protoforge | Found Cep. Reaction Jets 25932 | -2/Protoforge | Spotted V558-r 25932 | -2/Protoforge | Spotted V662-j 25933 | -2/Protoforge | Found Exp. Force Field 25982 | -2/Protoforge | Spotted Decapitator 25983 | -2/Protoforge | Spotted Decapitator 26039 | -2/Protoforge | Found Femtoactuators 26042 | -2/Protoforge | Found Faulty Femtoactuators 26070 | -2/Protoforge | Found Exp. Force Booster 26073 | -2/Protoforge | Found Faulty Exp. Force Booster 26076 | -2/Protoforge | Found Cep. Weapon Articulator 26120 | -2/Protoforge | Destroyed Decapitator 26120 | -2/Protoforge | Destroyed Decapitator 26128 | -2/Protoforge | Found Faulty Cep. Phase Shift Module 26135 | -2/Protoforge | Found Exp. Force Field 26144 | -2/Protoforge | Found Faulty Femtoactuators 26149 | -2/Protoforge | Found Cep. Weapon Articulator 26161 | -2/Protoforge | Found Faulty Cep. Hardlight Director 26251 | -2/Protoforge | Spotted Decapitator 26251 | -2/Protoforge | Spotted Decapitator 26251 | -2/Protoforge | Spotted Decapitator 26261 | -2/Protoforge | Weapon slot count temporarily expanded by X0-1V1 (+1) 26286 | -2/Protoforge | Destroyed Decapitator 26313 | -2/Protoforge | X0-1V1 sent you to a vault 26350 | -2/Protoforge | Spotted Hotshot 26402 | -2/Protoforge | Found Exp. System Purifier 26518 | -2/Protoforge | Local machine network offline 26531 | -2/Protoforge | Spotted Immortal 26556 | -2/Protoforge | X0-1V1 whisked you away to safety 26667 | -2/Protoforge | Build established: Tank 26690 | -2/Protoforge | Rewired Immortal 26691 | -2/Protoforge | Destroyed Immortal 26733 | -2/Protoforge | Destroyed Decapitator 26746 | -2/Protoforge | Spotted V722-f 26765 | -2/Protoforge | Weapon slot count reverted to normal (-1) 26772 | -2/Protoforge | Destroyed V722-f 26775 | -2/Protoforge | Found Cep. Antigrav Storage Unit 26849 | -2/Protoforge | Spotted Immortal 26849 | -2/Protoforge | Spotted Immortal 26856 | -2/Protoforge | Spotted V109-e 26856 | -2/Protoforge | Spotted V576-d 26876 | -2/Protoforge | Found Cep. Combat Aerolev Unit 26894 | -2/Protoforge | Found Faulty Cep. Biometal Exoskeleton 26946 | -2/Protoforge | Found Faulty Cep. Biometal Exoskeleton 27037 | -2/Protoforge | X0-1V1 sent hostile B-74 Champion (x1) 27059 | -2/Protoforge | Spotted AP7-3 27059 | -2/Protoforge | Spotted AP7-3 27078 | -2/Protoforge | Destroyed AP7-3 27091 | -2/Protoforge | Destroyed AP7-3 27163 | -2/Protoforge | Found Prototype Ballistic Gun 27163 | -2/Protoforge | Identified Multirail 27165 | -2/Protoforge | Found Multirail 27180 | -2/Protoforge | Found Prototype Device 27180 | -2/Protoforge | Identified Exp. ECM Suite 27209 | -2/Protoforge | Found Cld. Directed Potential Cannon 27214 | -2/Protoforge | Found Cep. Cloak Mesh 27217 | -2/Protoforge | Found Cep. Cloak Mesh 27241 | -2/Protoforge | X0-1V1 sent you into danger 27257 | -2/Protoforge | X0-1V1 added 0b10 threat records associated with you (considerable) 27289 | -2/Protoforge | Destroyed V576-d 27293 | -2/Protoforge | Found Prototype Device 27293 | -2/Protoforge | Identified Exp. Shield Generator 27296 | -2/Protoforge | Found Prototype Processor 27296 | -2/Protoforge | Identified Exp. Armor Integrity Analyzer 27367 | -2/Protoforge | X0-1V1 announced a LAN party 27383 | -2/Protoforge | Core integrity fell below 50% 27390 | -2/Protoforge | Spotted V637-s 27390 | -2/Protoforge | Spotted V877-y 27390 | -2/Protoforge | X0-1V1 sent you into danger 27416 | -2/Protoforge | Destroyed V558-r 27431 | -2/Protoforge | Destroyed V662-j 27462 | -2/Protoforge | Found Faulty Cep. Hardlight Director 27499 | -2/Protoforge | Core integrity restored by X0-1V1 (+384) 27730 | -2/Protoforge | Found Faulty Cld. Directed Potential Cannon 27866 | -2/Protoforge | Found Cep. Network Penetrator 27919 | -2/Protoforge | Found Cep. Network Penetrator 27967 | -2/Protoforge | Additional patrols dispatched to research labs 27986 | -2/Protoforge | Found Cep. Nanofilaments [Endoweave] 27986 | -2/Protoforge | Installed Cep. Nanofilaments [Endoweave], 5 resistances modified: KI +10%, TH +10%, EX -50%, S -20%, P +20% 27999 | -2/Protoforge | Found Cep. Navigation Harness 28005 | -2/Protoforge | Found Transdimensional Reconstructor 28024 | -2/Protoforge | X0-1V1 mutated your Weapon slot to Utility slot 28170 | -2/Protoforge | Lost 3 allies 28205 | -2/Protoforge | X0-1V1 downgraded hostiles (x6) 28292 | -2/Protoforge | Build established: Mutant 28337 | -2/Protoforge | X0-1V1 vaporized surrounding terrain (radius 23) 28341 | -2/Protoforge | X0-1V1 activates XOMVISION 28442 | -2/Protoforge | High security lockdown imminent 28492 | -2/Protoforge | Spotted Hotshot 28522 | -2/Protoforge | High security lockdown engaged 28523 | -2/Protoforge | Spotted Hotshot 28523 | -2/Protoforge | Spotted Hotshot 28523 | -2/Protoforge | Spotted Hotshot 28526 | -2/Protoforge | Spotted Hotshot 28564 | -2/Protoforge | Discovered exit to Access (range 17) 28564 | -2/Protoforge | Crushed by falling debris 28566 | -2/Protoforge | Spotted Hotshot 28567 | -2/Protoforge | Spotted Hotshot 28568 | -2/Protoforge | Spotted Executioner 28569 | -2/Protoforge | Spotted Hotshot 28573 | -2/Protoforge | Destroyed Hotshot 28584 | -2/Protoforge | Spotted Hotshot 28607 | -2/Protoforge | Entered Access 28607 | -1/Access | Evolved 2 slots: Power x1, Utility x1 28623 | -1/Access | Lost 8 parts (2p3n2u1w) 28693 | -1/Access | Identified exit to Command 28694 | -1/Access | X0-1V1 activates XOMVISION 28777 | -1/Access | Fabricated Adv. System Restoration Module (x2) 28831 | -1/Access | X0-1V1 enhanced Transport squad support 28853 | -1/Access | X0-1V1 sent you to a vault 28862 | -1/Access | Found Prototype Device 28862 | -1/Access | Identified Exp. Phase Shifter 28865 | -1/Access | Found Prototype Device 28865 | -1/Access | Identified Exp. EM Shield 28869 | -1/Access | Found Exp. Shock Absorption System 28886 | -1/Access | Spotted Striker 28888 | -1/Access | Spotted Striker 28889 | -1/Access | Build established: Wizard-Mutant 28905 | -1/Access | Destroyed Striker 28915 | -1/Access | Destroyed Striker 28952 | -1/Access | X0-1V1 destroyed Energy Cycler 28952 | -1/Access | Energy Cycler disabled 28982 | -1/Access | Spotted Executioner 28996 | -1/Access | Spotted Executioner 28997 | -1/Access | Destroyed Executioner 29001 | -1/Access | Destroyed Executioner 29012 | -1/Access | Found Exp. Core Analyzer 29026 | -1/Access | Spotted Striker 29026 | -1/Access | Spotted Striker 29030 | -1/Access | Identified exit to Surface 29030 | -1/Access | X0-1V1 revealed exit location to -0/Surface 29047 | -1/Access | Destroyed Striker 29051 | -1/Access | Destroyed Striker 29107 | -1/Access | First assault squad dispatched 29112 | -1/Access | Destroyed 7 combat bots 29210 | -1/Access | X0-1V1 vaporized surrounding terrain (radius 15) 29239 | -1/Access | High security lockdown imminent 29242 | -1/Access | Weapon slot count temporarily expanded by X0-1V1 (+1) 29319 | -1/Access | High security lockdown engaged 29341 | -1/Access | Destroyed 31 combat bots 29416 | -1/Access | Spotted B-99 Colossus 29416 | -1/Access | Spotted B-99 Colossus 29423 | -1/Access | Destroyed B-99 Colossus 29446 | -1/Access | Destroyed B-99 Colossus 29468 | -1/Access | Found Multirail 29486 | -1/Access | Found Multirail 29490 | -1/Access | Found Multirail 29617 | -1/Access | Spotted Striker 29620 | -1/Access | Spotted Striker 29621 | -1/Access | Spotted Striker 29623 | -1/Access | Destroyed Striker 29628 | -1/Access | Destroyed Striker 29633 | -1/Access | Destroyed Striker 29668 | -1/Access | Destroyed 14 combat bots 29686 | -1/Access | Weapon slot count reverted to normal (-1) 29773 | -1/Access | Spotted Striker 29774 | -1/Access | Spotted Executioner 29775 | -1/Access | Destroyed Striker 29782 | -1/Access | Destroyed Executioner 29803 | -1/Access | Destroyed 17 combat bots 29805 | -1/Access | X0-1V1 added 0b10 threat records associated with you (major) 29860 | -1/Access | Spotted Striker 29866 | -1/Access | Spotted Executioner 29866 | -1/Access | Destroyed Executioner 29870 | -1/Access | Destroyed Striker 29891 | -1/Access | Destroyed 9 combat bots 29928 | -1/Access | Entered Command 29997 | -1/Command | Build established: Scavenger-Mutant 30049 | -1/Command | Spotted Executioner 30049 | -1/Command | Spotted Executioner 30066 | -1/Command | Destroyed Executioner 30074 | -1/Command | High security lockdown imminent 30074 | -1/Command | Destroyed Executioner 30076 | -1/Command | Found Exp. Core Analyzer 30154 | -1/Command | High security lockdown engaged 30154 | -1/Command | X0-1V1 activates XOMVISION 30208 | -1/Command | Spotted M Guard 30210 | -1/Command | Spotted M Guard 30211 | -1/Command | Spotted Combat Programmer 30211 | -1/Command | Spotted Combat Programmer 30229 | -1/Command | Destroyed Combat Programmer 30240 | -1/Command | Destroyed Combat Programmer 30249 | -1/Command | Destroyed M Guard 30251 | -1/Command | Destroyed M Guard 30251 | -1/Command | All MAIN.C guards destroyed 30354 | -1/Command | Spotted Investigator 30359 | -1/Command | Destroyed Investigator 30361 | -1/Command | X0-1V1 sent allied Fireman (x4) 30381 | -1/Command | Spotted Striker 30381 | -1/Command | Spotted Executioner 30419 | -1/Command | Lost 4 allies 30427 | -1/Command | Destroyed Striker 30448 | -1/Command | Destroyed 17 combat bots 30452 | -1/Command | Destroyed Executioner 30473 | -1/Command | Spotted Executioner 30473 | -1/Command | Spotted Executioner 30480 | -1/Command | Spotted Striker 30489 | -1/Command | Spotted Executioner 30503 | -1/Command | Door terminal overloaded 30506 | -1/Command | X0-1V1 sent allied X-82 Rainmaker (x4) 30516 | -1/Command | Destroyed Striker 30516 | -1/Command | Destroyed Executioner 30521 | -1/Command | Core integrity fell below 50% 30522 | -1/Command | Lost 3 parts (1n1u1w) 30528 | -1/Command | Destroyed Executioner 30531 | -1/Command | Destroyed Executioner 30535 | -1/Command | System corruption reached 10% 30547 | -1/Command | Lost 4 allies 30581 | -1/Command | X0-1V1 activates XOMVISION 30601 | -1/Command | Destroyed 22 combat bots 30624 | -1/Command | Met MAIN.C 30627 | -1/Command | 0b10 Conduit disabled 30664 | -1/Command | Destroyed MAIN.C Shell 30665 | -1/Command | MAIN.C activated Command garrisons 30689 | -1/Command | Spotted Striker 30689 | -1/Command | Spotted Striker 30690 | -1/Command | Spotted Executioner 30696 | -1/Command | Spotted Striker 30701 | -1/Command | Destroyed MAIN.C 30702 | -1/Command | Spotted Executioner 30702 | -1/Command | Spotted Executioner 30703 | -1/Command | Destroyed Striker 30705 | -1/Command | Destroyed Striker 30716 | -1/Command | Weapon slot count temporarily expanded by X0-1V1 (+1) 30719 | -1/Command | Destroyed Striker 30720 | -1/Command | Spotted Striker 30720 | -1/Command | Spotted Striker 30724 | -1/Command | System corruption reached 30% 30726 | -1/Command | Lost 6 parts (2p2n1u1w) 30731 | -1/Command | Discovered exit to Surface (range 38) 30731 | -1/Command | Discovered exit to Surface (range 98) 30731 | -1/Command | Extracted map data and part IDs from MAIN.C's data core 30751 | -1/Command | Destroyed Striker 30765 | -1/Command | Destroyed Executioner 30803 | -1/Command | Destroyed 18 combat bots 30839 | -1/Command | Found Exp. Core Analyzer 30985 | -1/Command | X0-1V1 caused items to flee you 31189 | -1/Command | Weapon slot count reverted to normal (-1) 31318 | -1/Command | Items stopped fleeing you 31353 | -1/Command | Found Exp. Core Analyzer 31672 | -1/Command | X0-1V1 activates XOMVISION 31762 | -1/Command | Found Exp. System Purifier 31831 | -1/Command | Found Vortex Chain Reactor 31833 | -1/Command | Found Zero-point Reactor 31836 | -1/Command | Found Exp. Armor Integrity Analyzer 31839 | -1/Command | Found Hvy. Regenerative Plating 31896 | -1/Command | Identified exit to Access_0 31896 | -1/Command | X0-1V1 revealed exit location to -1/Access_0 32020 | -1/Command | X0-1V1 caused items to flee you 32275 | -1/Command | Items stopped fleeing you 32309 | -1/Command | X0-1V1 activates XOMVISION 32352 | -1/Command | Found Zero-point Reactor 32651 | -1/Command | Found Exp. Core Analyzer 32725 | -1/Command | Found Gui. Micro-nuke Launcher 32740 | -1/Command | Phase Generator disabled 32790 | -1/Command | X0-1V1 sent hostile Guerrilla (x2) 33121 | -1/Command | Found Powered Armor 33125 | -1/Command | X0-1V1 sent hostile G-73 Enforcer (x4) 33154 | -1/Command | X0-1V1 vaporized surrounding terrain (radius 15) 33404 | -1/Command | Core integrity restored by X0-1V1 (+330) 33483 | -1/Command | X0-1V1 sent you to a vault 33645 | -1/Command | Core integrity restored by X0-1V1 (+330) 33674 | -1/Command | Warped through subspace to slip node 33681 | -1/Command | Entered Access_0 33683 | -1/Access_0 | Met Architect 33704 | -1/Access_0 | Architect warped through subspace 33706 | -1/Access_0 | Found Exp. Thermal Shield 33755 | -1/Access_0 | Architect warped through subspace 33782 | -1/Access_0 | X0-1V1 revealed exit location to -0/Surface 33785 | -1/Access_0 | Found Exp. Phase Shifter 33799 | -1/Access_0 | Subspace Access Node disabled 33852 | -1/Access_0 | Architect warped through subspace 33890 | -1/Access_0 | Architect warped through subspace 33890 | -1/Access_0 | Subspace Access Node disabled 33900 | -1/Access_0 | A6 warped into view 33906 | -1/Access_0 | Destroyed A6 33916 | -1/Access_0 | Found Femtoactuators 33927 | -1/Access_0 | Architect warped through subspace 33943 | -1/Access_0 | Found Exp. Melee Analysis Suite 33951 | -1/Access_0 | Architect warped through subspace 33970 | -1/Access_0 | Weapon slot count temporarily expanded by X0-1V1 (+1) 33984 | -1/Access_0 | Architect warped through subspace 34066 | -1/Access_0 | Architect warped through subspace 34078 | -1/Access_0 | Found Exp. Powered Armor 34098 | -1/Access_0 | Found Integrated Reactor 34098 | -1/Access_0 | Installed Integrated Reactor, increased core energy generation (+10) 34115 | -1/Access_0 | Architect warped through subspace 34145 | -1/Access_0 | Core integrity restored by X0-1V1 (+252) 34175 | -1/Access_0 | Architect warped through subspace 34217 | -1/Access_0 | Lost 3 parts (1u2w) 34224 | -1/Access_0 | Architect warped through subspace 34257 | -1/Access_0 | X0-1V1 mutated your Utility slot to Power slot 34284 | -1/Access_0 | Architect warped through subspace 34337 | -1/Access_0 | Subspace Access Node disabled 34377 | -1/Access_0 | Architect warped through subspace 34402 | -1/Access_0 | A5 warped into view 34434 | -1/Access_0 | Destroyed A5 34447 | -1/Access_0 | Architect warped through subspace 34457 | -1/Access_0 | Lost 4 parts (2u2w) 34482 | -1/Access_0 | Architect warped through subspace 34482 | -1/Access_0 | Weapon slot count reverted to normal (-1) 34512 | -1/Access_0 | Found Exp. Powered Armor 34515 | -1/Access_0 | Found Exp. Powered Armor 34530 | -1/Access_0 | Architect warped through subspace 34559 | -1/Access_0 | X0-1V1 whisked you away to safety 34561 | -1/Access_0 | X0-1V1 mutated your Utility slot to Weapon slot 34566 | -1/Access_0 | Core integrity restored by X0-1V1 (+283) 34593 | -1/Access_0 | Architect warped through subspace 34621 | -1/Access_0 | X0-1V1 sent allied Executioner (x2) 34624 | -1/Access_0 | Architect warped through subspace 34646 | -1/Access_0 | A4 warped into view 34661 | -1/Access_0 | Subspace Access Node disabled 34701 | -1/Access_0 | Destroyed A4 34808 | -1/Access_0 | Extracted Singularity Gate Test 138-C access codes from A2's data core 34812 | -1/Access_0 | Found Exp. Phase Shifter 34866 | -1/Access_0 | Core integrity fell below 20% 34879 | -1/Access_0 | Weapon slot count temporarily expanded by X0-1V1 (+1) 34886 | -1/Access_0 | Found Exp. Phase Shifter 34890 | -1/Access_0 | Singularity Gate disabled 34917 | -1/Access_0 | X0-1V1 rescued you from certain death 34943 | -1/Access_0 | Destroyed Architect 34944 | -1/Access_0 | Extracted unknown sensor trigger ID from Architect's data core 34945 | -1/Access_0 | Found Hpw. Transdimensional Reconstructor 34966 | -1/Access_0 | Lost 18 parts (6p4n7u1w) 35023 | -1/Access_0 | Core integrity restored by X0-1V1 (+252) 35070 | -1/Access_0 | Found Exp. Thermal Shield 35071 | -1/Access_0 | Weapon slot count reverted to normal (-1) 35118 | -1/Access_0 | Found Exp. EM Shield 35123 | -1/Access_0 | Found Spectral Analyzer 35182 | -1/Access_0 | Found Enh. Gamma Bomb Array 35185 | -1/Access_0 | Found Enh. Gamma Bomb Array 35187 | -1/Access_0 | Found Enh. Gamma Bomb Array 35189 | -1/Access_0 | Found Enh. Gamma Bomb Array 35350 | -1/Access_0 | A3 warped into view 35380 | -1/Access_0 | Destroyed A3 35383 | -1/Access_0 | Found Prototype Device 35384 | -1/Access_0 | Identified ST Field Compressor 35395 | -1/Access_0 | Found Prototype Ballistic Gun 35395 | -1/Access_0 | Identified A3's Sniper Rifle 35416 | -1/Access_0 | Build established: Generator-Gunner 35445 | -1/Access_0 | Core integrity restored by X0-1V1 (+346) 35484 | -1/Access_0 | X0-1V1 caused items to flee you 35712 | -1/Access_0 | Items stopped fleeing you 35740 | -1/Access_0 | Found Sigix Corpse 35801 | -1/Access_0 | Found Integrated Dissipator 35802 | -1/Access_0 | Installed Integrated Dissipator, increased core heat dissipation (+20) 35952 | -1/Access_0 | X0-1V1 activates XOMVISION 35970 | -1/Access_0 | Found Exp. Melee Analysis Suite 36025 | -1/Access_0 | Found Core Regenerator 36066 | -1/Access_0 | Found Exp. Powered Armor 36198 | -1/Access_0 | X0-1V1 caused items to flee you 36429 | -1/Access_0 | Items stopped fleeing you 36445 | -1/Access_0 | Found Exp. Focal Shield 36569 | -1/Access_0 | X0-1V1 vaporized surrounding terrain (radius 22) 36696 | -1/Access_0 | X0-1V1 activates XOMVISION 36771 | -1/Access_0 | X0-1V1 sent hostile C-57 Dissector (x1) 36897 | -1/Access_0 | Found Hpw. Transdimensional Reconstructor 36901 | -1/Access_0 | Warped through subspace to slip node 36912 | *** | Establishing 0b11! Last Messages --------------- I've chosen Revision 17. Based on the data, this variant seems the closest in thinking to MAIN.C, just as logical but with a lot more crazy. The perfect counter. >>Record "Log L.JSI57FRK" [REDACTED] >>Record "Log L.A53LKJAG" [REDACTED] 36813_ X0-1V1: "Watch where you're going!" (+6 sight range) 36892_ Workstation disabled. 36897_ Dropped Cmb. Antigrav System. 36897_ Acquired Hpw. Transdimensional Reconstructor. 36899_ Dropped Prc. Energy Filter. 36900_ Acquired Cmb. Antigrav System. 36901_ Warped through subspace, drawn to slip node. 36909_ HV Slug penetrates Dimensional Slip Node. 36909_ Dimensional Slip Node implodes. Map ----- +----------------------------------------------------+ | | | | | | | | | | | | | | | | | | | | | | | | | | | | | | | | | ?????????????????????????????????????????????????? | | ?????????????????????????????????????????????????? | | ?????????????????????????????????????????????????? | | ?????????????????????????????????????????????????? | | ?????????????????????????????????????????????????? | | ?????????????????????????????????????????????????? | | ????????????????????????###??????????????????????? | | ???????????????????????## ##?????????????????????? | | ???????????????????????# #?????????????????????? | | ???????????????????????# @ #?????????????????????? | | ??????????????????????## #?????????????????????? | | ?????????????????????# #?????????????????????? | | ???????????????????# ????????????????????? | | ???????????????????# #???????????????????? | | ??????????????????# #??????????????????? | | ??????????????????# #??????????????????? | | ??????????????????# #??????????????????? | | ??????????????????# #??????????????????? | | ??????????????????# #??????????????????? | | ??????????????????## ##??????????????????? | | ???????????????????# #???????????????????? | | ???????????????????### ###???????????????????? | | ?????????????????????#######?????????????????????? | | ?????????????????????????????????????????????????? | | ?????????????????????????????????????????????????? | | ?????????????????????????????????????????????????? | | ?????????????????????????????????????????????????? | | ?????????????????????????????????????????????????? | | ?????????????????????????????????????????????????? | | ?????????????????????????????????????????????????? | | ?????????????????????????????????????????????????? | | ?????????????????????????????????????????????????? | | ?????????????????????????????????????????????????? | | ?????????????????????????????????????????????????? | +----------------------------------------------------+ Best States ------------- Heat Dissipation 172 Energy Generation 149 Energy Capacity 2700 Matter Stores 1000 Matter Capacity 1000 Sight Range 32 Robot Scan Range 19 Terrain Scan Density 10 Cloak Strength 9 Power Amplification 40 EM Shielding 4 Corruption Block 20 Armor Coverage 3000 Resistance: KI 31 Resistance: TH 85 Resistance: EX 25 Resistance: P 20 Utility Shielding 66 Melee Speed Boost 50 Phase Shifting 25 Evasion (%) 113 Targeting Accuracy 30 Melee Accuracy 24 Core Analysis 12 Armor Integrity Analysis 50 Recoil Reduction 3 Force Boost 50 Offensive Hacking 100 Defensive Hacking 14 Relay Coupler Types 1 Relay Coupler Value 99 Authchip Count 4 Trap Extractor Capacity 6 Item Schematics ----------------- Tactical Coordination Suite | -6/Zion | Free Arc Thrower | -6/Zion | Free Beamcaster | -6/Zion | Free Flamer | -6/Zion | Free Battle Cannon | -6/Zion | Free Riot Gun | -6/Zion | Free Imp. Proton Missile Launcher | -6/Zion | Archive Adv. System Restoration Module | -6/Zion | Archive Arm. Leg | -6/Zion | Archive Imp. Coolant Injector | -6/Zion | Archive Imp. Thermal Generator | -6/Zion | Archive Adv. Recoil Stabilizer | -6/Zion | Archive Imp. Cryofiber Web | -6/Zion | Archive Adv. Focal Shield | -6/Zion | Archive Hardcell Cannon | -6/Zion | Archive Adv. Shield Generator | -6/Zion | Archive Nuclear Pulse Thruster | -6/Zion | Archive Drone Bay | -6/Zion | Archive Adv. Drone Bay | -6/Zion | Archive Hvy. Pick | -6/Zion | Archive Imp. Shock Absorption System | -6/Zion | Archive Kinetic Spear | -3/Testing | Archive Enh. Coil Gun | -3/Testing | Archive Hvy. Antimatter Reactor | -3/Testing | Archive Hds. Centrium Wheel | -3/Testing | Archive Neutron Missile Launcher | -3/Testing | Archive Com. Mass Driver | -3/Testing | Archive Cld. Phase Gun | -3/Testing | Archive Adv. KE Penetrator | -3/Testing | Archive Imp. Energy Well | -3/Testing | Archive Centrium Light Armor Plating | -3/Testing | Archive Centrium Greatsword | -3/Testing | Archive Adv. Plasma Rifle | -3/Testing | Archive Hvy. Tesla Rifle | -3/Testing | Archive Enh. Gamma Bomb Array | -2/Quarantine | Archive Adv. Particle Accelerator | -2/Quarantine | Archive Com. Particle Reactor | -2/Quarantine | Archive Proton Burst Cannon | -2/Quarantine | Archive Coolant Network | -2/Quarantine | Archive Hds. Centrium Leg | -2/Quarantine | Archive Hvy. Proton Cannon | -2/Quarantine | Archive Imp. Matter Neutralizer | -2/Quarantine | Archive Exp. Gyrokinetic Inverter | -2/Protoforge | Archive Exp. Core Analyzer | -2/Protoforge | Archive Exp. Power Amplifier | -2/Protoforge | Archive Exp. Field Recycling Unit | -2/Protoforge | Archive Hvy. Wave Gun | -2/Protoforge | Archive Shock Maul | -2/Protoforge | Archive Robot Schematics ------------------ M-13 Machinist | -10/Materials | Hacked A-02 Transporter | -6/Zion | Archive R-06 Scavenger | -6/Zion | Archive D-83 Annihilator | -6/Zion | Archive M-30 Cleanser | -3/Testing | Archive B-60 Warrior | -3/Testing | Archive G-67 Veteran | -3/Testing | Archive T-07 Excavator | -3/Testing | Archive E-15 Imp | -3/Testing | Archive B-74 Champion | -3/Testing | Archive R-10 Processor | -2/Quarantine | Archive A-27 Freighter | -2/Quarantine | Archive H-77 Assassin | -2/Protoforge | Archive K-01 Serf | -2/Protoforge | Archive Fabricated ------------ Tactical Coordination Suite | x1 | -5/Proximity Caves Adv. System Restoration Module | x2 | -1/Access Repaired ---------- Nothing Studied --------- Com. Wheel | -9/Materials | Hacked Wheel | -9/Materials | Hacked Flexi-carbon Leg | -5/Factory | Hacked Hvy. Armored Exoskeleton | -3/Testing | Hacked Hyb. Antimatter Reactor | -3/Testing | Hacked Alien Tech Used ----------------- Phase Redirector Sigix Broadsword Subatomic Replicator Concept Nanofilaments [Endoweave] Transdimensional Reconstructor Integrated Reactor Integrated Dissipator High-powered Transdimensional Reconstructor Achievements -------------- Greater Chaos Statue Heist Challenges ------------ None Game ------ Seed ExperimentalBlastBoregun Manual? 0 Play Time 07:02:50 Cumulative 1029.1 hours Start 2026.08.18 @ 20:06:48 End 2026.08.21 @ 00:00:13 Sessions 7 Manual Loads 0 Difficulty Rogue Special Mode None Game No. 288 Rogue 288 Adventurer 0 Explorer 0 Win Type 1 Total 46 Types 13/10/11/2/2/0/4/1/1/2 Lore% 96 Gallery% 91 Achievement% 87 Wizard Run 0 Options --------- Layout 1 ASCII 0 Keyboard 0 Movement Mouse Keybinds 0 Fullscreen 2 Font 32/SmallcapsGlow Map View 50x35 Zoom Use 0% Tactical HUD 1 Map Filters NONE Filters NONE Steam 1 RUN: 612c5a94-2807-4be3-98ad-be038eff4189